Workbook

Sheet Tabelle 1 - Pab_Indoor-Gehäuse
A1: Tabelle Gehäuse-System: Angaben zur Wärmeberechnung gemäß DIN EN 61439-1, -2, -3 | P1: Beschreibung
H2: Abstrahlbare Verlustleistung Pab, W | M2: BxHxT für Wärmeberechung (ohne Sockel) [mm]
A3: Schrankart | B3: Hersteller | C3: Schutzart | D3: Typ | E3: B x H [mm] | F3: Tiefe [mm] | G3: Bemessungsstrom In [A] | H3: Beideseitg Frei, Wandaufstellung, 20K 75% Gehäusehöhe | I3: Einseitig abgedeckt, Wandaufstellung 20K 75% Gehäusehöhe | J3: Beideseitig abgedeckt, Wandaufstellung 20K 75% Gehäusehöhe | K3: Beideseitg Frei Ruckwand Frei, 20K 75% Gehäusehöhe | L3: Beideseitg Frei, Wandaufstellung, 20K 100% Gehäusehöhe | M3: B | N3: H | O3: Tiefe [mm]
A4: Installations-Flachverteiler
A5: UP/HW-Verteiler, modulare Lieferform, SK II Baureihe UL.. - Leergehäuse | B5: ABN | C5: IP30 | D5: UL13X | E5: 320 x 520 | F5: 110 | G5: 125 | M5: 320 | N5: 520 | O5: 110
D6: UL23X | E6: 570 x 520 | M6: 570 | N6: 520 | O6: 110
D7: UL33X | E7: 820 x 520 | M7: 820 | N7: 520 | O7: 110
O8: 110
B9: ABN | C9: IP30 | D9: UL14X | E9: 320 x 670 | F9: 110 | M9: 320 | N9: 670 | O9: 110
D10: UL24X | E10: 570 x 670 | M10: 570 | N10: 670 | O10: 110
D11: UL34X | E11: 820 x 670 | M11: 820 | N11: 670 | O11: 110
O12: 110
B13: ABN | C13: IP30 | D13: UL15X | E13: 320 x 820 | F13: 110 | M13: 320 | N13: 820 | O13: 110
D14: UL25X | E14: 570 x 820 | M14: 570 | N14: 820 | O14: 110
D15: UL35X | E15: 820 x 820 | M15: 820 | N15: 820 | O15: 110
D16: UL45X | E16: 1070 x 820 | M16: 1070 | N16: 820 | O16: 110
O17: 110
B18: ABN | C18: IP30 | D18: UL16X | E18: 320 x 970 | F18: 110 | M18: 320 | N18: 970 | O18: 110
D19: UL26X | E19: 570 x 970 | M19: 570 | N19: 970 | O19: 110
D20: UL36X | E20: 820 x 970 | M20: 820 | N20: 970 | O20: 110
D21: UL46X | E21: 1070 x 970 | M21: 1070 | N21: 970 | O21: 110
O22: 110
B23: ABN | C23: IP30 | D23: UL17X | E23: 320 x 1120 | F23: 110 | M23: 320 | N23: 1120 | O23: 110
D24: UL27X | E24: 570 x 1120 | M24: 570 | N24: 1120 | O24: 110
D25: UL37X | E25: 820 x 1120 | M25: 820 | N25: 1120 | O25: 110 | Q25: ABNRM103
A26: AP-Verteiler, modulare Lieferform, SK II Baureihe RM.. - Leergehäuse | B26: ABN | C26: IP44 | D26: ABNRM103 | E26: 300 x 500 | F26: 160 | G26: 250 | M26: 300 | N26: 500 | O26: 160 | P26: Feldverteiler AP Leer FB1 BH3 Volltür für 36TE REG T:160mm | Q26: ABNRM203
D27: ABNRM203 | E27: 550 x 500 | M27: 550 | N27: 500 | O27: 160 | P27: Feldverteiler AP Leer FB2 BH3 Volltür für 72TE REG T:160mm | Q27: ABNRM303
D28: ABNRM303 | E28: 800 x 500 | M28: 800 | N28: 500 | O28: 160 | P28: Feldverteiler AP Leer FB3 BH3 Volltür für 108TE REG T:160mm | Q28: ABNRM403
D29: ABNRM403 | E29: 1050 x 500 | M29: 1050 | N29: 500 | O29: 160 | P29: Feldverteiler AP Leer FB4 BH3 Volltür für 144TE REG T:160mm
O30: 160 | Q30: ABNRM104
B31: ABN | C31: IP44 | D31: ABNRM104 | E31: 300 x 650 | F31: 160 | M31: 300 | N31: 650 | O31: 160 | P31: Feldverteiler AP Leer FB1 BH4 Volltür für 48TE REG T:160mm | Q31: ABNRM204
D32: ABNRM204 | E32: 550 x 650 | M32: 550 | N32: 650 | O32: 160 | P32: Feldverteiler AP Leer FB2 BH4 Volltür für 96TE REG T:160mm | Q32: ABNRM304
D33: ABNRM304 | E33: 800 x 650 | M33: 800 | N33: 650 | O33: 160 | P33: Feldverteiler AP Leer FB3 BH4 Volltür für 144TE REG T:160mm | Q33: ABNRM404
D34: ABNRM404 | E34: 1050 x 650 | M34: 1050 | N34: 650 | O34: 160 | P34: Feldverteiler AP Leer FB4 BH4 Volltür für 192TE REG T:160mm
O35: 160 | Q35: ABNRM105
B36: ABN | C36: IP44 | D36: ABNRM105 | E36: 300 x 800 | F36: 160 | M36: 300 | N36: 800 | O36: 160 | P36: Feldverteiler AP Leer FB1 BH5 Volltür für 60TE REG T:160mm | Q36: ABNRM205
D37: ABNRM205 | E37: 550 x 800 | M37: 550 | N37: 800 | O37: 160 | P37: Feldverteiler AP Leer FB2 BH5 Volltür für 120TE REG T:160mm | Q37: ABNRM305
D38: ABNRM305 | E38: 800 x 800 | M38: 800 | N38: 800 | O38: 160 | P38: Feldverteiler AP Leer FB3 BH5 Volltür für 180TE REG T:160mm | Q38: ABNRM405
D39: ABNRM405 | E39: 1050 x 800 | M39: 1050 | N39: 800 | O39: 160 | P39: Feldverteiler AP Leer FB4 BH5 Volltür für 240TE REG T:160mm
O40: 160 | Q40: ABNRM106
B41: ABN | C41: IP44 | D41: ABNRM106 | E41: 300 x 950 | F41: 160 | M41: 300 | N41: 950 | O41: 160 | P41: Feldverteiler AP Leer FB1 BH6 Volltür für 72TE REG T:160mm | Q41: ABNRM206
D42: ABNRM206 | E42: 550 x 950 | M42: 550 | N42: 950 | O42: 160 | P42: Feldverteiler AP Leer FB2 BH6 Volltür für 144TE REG T:160mm | Q42: ABNRM306
D43: ABNRM306 | E43: 800 x 950 | M43: 800 | N43: 950 | O43: 160 | P43: Feldverteiler AP Leer FB3 BH6 Volltür für 216TE REG T:160mm | Q43: ABNRM406
D44: ABNRM406 | E44: 1050 x 950 | M44: 1050 | N44: 950 | O44: 160 | P44: Feldverteiler AP Leer FB4 BH6 Volltür für 288TE REG T:160mm
O45: 160 | Q45: ABNRM107
B46: ABN | C46: IP44 | D46: ABNRM107 | E46: 300 x 1100 | F46: 160 | M46: 300 | N46: 1100 | O46: 160 | P46: Feldverteiler AP Leer FB1 BH7 Volltür für 84TE REG T:160mm | Q46: ABNRM207
D47: ABNRM207 | E47: 550 x 1100 | M47: 550 | N47: 1100 | O47: 160 | P47: Feldverteiler AP Leer FB2 BH7 Volltür für 168TE REG T:160mm | Q47: ABNRM307
D48: ABNRM307 | E48: 800 x 1100 | M48: 800 | N48: 1100 | O48: 160 | P48: Feldverteiler AP Leer FB3 BH7 Volltür für 252TE REG T:160mm | Q48: ABNRM407
D49: ABNRM407 | E49: 1050 x 1100 | M49: 1050 | N49: 1100 | O49: 160 | P49: Feldverteiler AP Leer FB4 BH7 Volltür für 336TE REG T:160mm | Q49: ABNRM403
A50: Systemgehäuse
A51: Wandgehäuse | Q51: ABNRM104
A52: Wandgehäuse Baureihe ABNRV, SK I | B52: ABN | C52: IP44 | D52: ABNRV103 | E52: 300 x 500 | F52: 210 | G52: 400 | H52: 29 | I52: 27 | J52: 24 | L52: 29 | M52: 300 | N52: 500 | O52: 210 | P52: Wandgehäuse geerdet IP44 BxHxT: 300x500x210mm | Q52: ABNRV103
D53: ABNRV203 | E53: 550 x 500 | H53: 45 | I53: 43 | J53: 41 | L53: 45 | M53: 550 | N53: 500 | O53: 210 | P53: Wandgehäuse geerdet IP44 BxHxT: 550x500x210mm | Q53: ABNRV203
D54: ABNRV303 | E54: 800 x 500 | H54: 63 | I54: 61 | J54: 58 | L54: 63 | M54: 800 | N54: 500 | O54: 210 | P54: Wandgehäuse geerdet IP44 BxHxT: 800x500x210mm | Q54: ABNRV303
D55: ABNRV403 | E55: 1050 x 500 | H55: 80 | I55: 78 | J55: 75 | L55: 80 | M55: 1050 | N55: 500 | O55: 210 | P55: Wandgehäuse geerdet IP44 BxHxT: 1050x500x210mm | Q55: ABNRV403
D56: ABNRV503 | E56: 1300 x 500 | H56: 105 | I56: 104 | J56: 103 | L56: 94 | M56: 1300 | N56: 500 | O56: 210 | P56: Wandgehäuse geerdet IP44 BxHxT: 1300x500x210mm | Q56: ABNRV503
O57: 210
B58: ABN | C58: IP44 | D58: ABNRV104 | E58: 300 x 650 | F58: 210 | H58: 35 | I58: 32 | J58: 29 | L58: 35 | M58: 300 | N58: 650 | O58: 210 | P58: Wandgehäuse geerdet IP44 BxHxT: 300x650x210mm | Q58: ABNRV104
D59: ABNRV204 | E59: 550 x 650 | H59: 53 | I59: 50 | J59: 47 | L59: 53 | M59: 550 | N59: 650 | O59: 210 | P59: Wandgehäuse geerdet IP44 BxHxT: 550x650x210mm | Q59: ABNRV204
D60: ABNRV304 | E60: 800 x 650 | H60: 73 | I60: 70 | J60: 67 | L60: 73 | M60: 800 | N60: 650 | O60: 210 | P60: Wandgehäuse geerdet IP44 BxHxT: 800x650x210mm | Q60: ABNRV304
D61: ABNRV404 | E61: 1050 x 650 | H61: 104 | I61: 102 | J61: 100 | L61: 90 | M61: 1050 | N61: 650 | O61: 210 | P61: Wandgehäuse geerdet IP44 BxHxT: 1050x650x210mm | Q61: ABNRV404
D62: ABNRV504 | E62: 1300 x 650 | H62: 126 | I62: 124 | J62: 123 | L62: 111 | M62: 1300 | N62: 650 | O62: 210 | P62: Wandgehäuse geerdet IP44 BxHxT: 1300x650x210mm | Q62: ABNRV504
O63: 210
B64: ABN | C64: IP44 | D64: ABNRV105 | E64: 300 x 800 | F64: 210 | H64: 41 | I64: 38 | J64: 34 | L64: 41 | M64: 300 | N64: 800 | O64: 210 | P64: Wandgehäuse geerdet IP44 BxHxT: 300x800x210mm | Q64: ABNRV105
D65: ABNRV205 | E65: 550 x 800 | H65: 61 | I65: 58 | J65: 54 | L65: 61 | M65: 550 | N65: 800 | O65: 210 | P65: Wandgehäuse geerdet IP44 BxHxT: 550x800x210mm | Q65: ABNRV205
D66: ABNRV305 | E66: 800 x 800 | H66: 95 | I66: 91 | J66: 89 | L66: 79 | M66: 800 | N66: 800 | O66: 210 | P66: Wandgehäuse geerdet IP44 BxHxT: 800x800x210mm | Q66: ABNRV305
D67: ABNRV405 | E67: 1050 x 800 | H67: 121 | I67: 118 | J67: 115 | L67: 103 | M67: 1050 | N67: 800 | O67: 210 | P67: Wandgehäuse geerdet IP44 BxHxT: 1050x800x210mm | Q67: ABNRV405
D68: ABNRV505 | E68: 1300 x 800 | H68: 147 | I68: 144 | J68: 142 | L68: 127 | M68: 1300 | N68: 800 | O68: 210 | P68: Wandgehäuse geerdet IP44 BxHxT: 1300x800x210mm | Q68: ABNRV505
O69: 210
B70: ABN | C70: IP44 | D70: ABNRV106 | E70: 300 x 950 | F70: 210 | H70: 47 | I70: 43 | J70: 39 | L70: 47 | M70: 300 | N70: 950 | O70: 210 | P70: Wandgehäuse geerdet IP44 BxHxT: 300x950x210mm | Q70: ABNRV106
D71: ABNRV206 | E71: 550 x 950 | H71: 69 | I71: 65 | J71: 61 | L71: 69 | M71: 550 | N71: 950 | O71: 210 | P71: Wandgehäuse geerdet IP44 BxHxT: 550x950x210mm | Q71: ABNRV206
D72: ABNRV306 | E72: 800 x 950 | H72: 107 | I72: 103 | J72: 100 | L72: 88 | M72: 800 | N72: 950 | O72: 210 | P72: Wandgehäuse geerdet IP44 BxHxT: 800x950x210mm | Q72: ABNRV306
D73: ABNRV406 | E73: 1050 x 950 | H73: 137 | I73: 133 | J73: 130 | L73: 115 | M73: 1050 | N73: 950 | O73: 210 | P73: Wandgehäuse geerdet IP44 BxHxT: 1050x950x210mm | Q73: ABNRV406
D74: ABNRV506 | E74: 1300 x 950 | H74: 166 | I74: 163 | J74: 161 | L74: 142 | M74: 1300 | N74: 950 | O74: 210 | P74: Wandgehäuse geerdet IP44 BxHxT: 1300x950x210mm | Q74: ABNRV506
O75: 210
B76: ABN | C76: IP44 | D76: ABNRV107 | E76: 300 x 1100 | F76: 210 | H76: 54 | I76: 49 | J76: 44 | L76: 54 | M76: 300 | N76: 1100 | O76: 210 | P76: Wandgehäuse geerdet IP44 BxHxT: 300x1100x210mm | Q76: ABNRV107
D77: ABNRV207 | E77: 550 x 1100 | H77: 86 | I77: 82 | J77: 78 | L77: 68 | M77: 550 | N77: 1100 | O77: 210 | P77: Wandgehäuse geerdet IP44 BxHxT: 550x1100x210mm | Q77: ABNRV207
D78: ABNRV307 | E78: 800 x 1100 | H78: 119 | I78: 114 | J78: 111 | L78: 97 | M78: 800 | N78: 1100 | O78: 210 | P78: Wandgehäuse geerdet IP44 BxHxT: 800x1100x210mm | Q78: ABNRV307
D79: ABNRV407 | E79: 1050 x 1100 | H79: 152 | I79: 148 | J79: 144 | L79: 126 | M79: 1050 | N79: 1100 | O79: 210 | P79: Wandgehäuse geerdet IP44 BxHxT: 1050x1100x210mm | Q79: ABNRV407
D80: ABNRV507 | E80: 1300 x 1100 | H80: 185 | I80: 181 | J80: 178 | L80: 156 | M80: 1300 | N80: 1100 | O80: 210 | P80: Wandgehäuse geerdet IP44 BxHxT: 1300x1100x210mm | Q80: ABNRV507
O81: 210
B82: ABN | C82: IP44 | D82: ABNRV108 | E82: 300 x 1250 | F82: 210 | H82: 60 | I82: 54 | J82: 49 | L82: 60 | M82: 300 | N82: 1250 | O82: 210 | P82: Wandgehäuse geerdet IP44 BxHxT: 300x1250x210mm | Q82: ABNRV108
D83: ABNRV208 | E83: 550 x 1250 | H83: 95 | I83: 90 | J83: 85 | L83: 74 | M83: 550 | N83: 1250 | O83: 210 | P83: Wandgehäuse geerdet IP44 BxHxT: 550x1250x210mm | Q83: ABNRV208
D84: ABNRV308 | E84: 800 x 1250 | H84: 130 | I84: 125 | J84: 121 | L84: 105 | M84: 800 | N84: 1250 | O84: 210 | P84: Wandgehäuse geerdet IP44 BxHxT: 800x1250x210mm | Q84: ABNRV308
D85: ABNRV408 | E85: 1050 x 1250 | H85: 167 | I85: 162 | J85: 158 | L85: 137 | M85: 1050 | N85: 1250 | O85: 210 | P85: Wandgehäuse geerdet IP44 BxHxT: 1050x1250x210mm | Q85: ABNRV408
D86: ABNRV508 | E86: 1300 x 1250 | H86: 203 | I86: 199 | J86: 196 | L86: 169 | M86: 1300 | N86: 1250 | O86: 210 | P86: Wandgehäuse geerdet IP44 BxHxT: 1300x1250x210mm | Q86: ABNRV508
O87: 210
B88: ABN | C88: IP44 | D88: ABNRV109 | E88: 300 x 1400 | F88: 210 | H88: 66 | I88: 60 | J88: 54 | L88: 66 | M88: 300 | N88: 1400 | O88: 210 | P88: Wandgehäuse geerdet IP44 BxHxT: 300x1400x210mm | Q88: ABNRV109
D89: ABNRV209 | E89: 550 x 1400 | H89: 104 | I89: 98 | J89: 93 | L89: 81 | M89: 550 | N89: 1400 | O89: 210 | P89: Wandgehäuse geerdet IP44 BxHxT: 550x1400x210mm | Q89: ABNRV209
D90: ABNRV309 | E90: 800 x 1400 | H90: 142 | I90: 136 | J90: 131 | L90: 112 | M90: 800 | N90: 1400 | O90: 210 | P90: Wandgehäuse geerdet IP44 BxHxT: 800x1400x210mm | Q90: ABNRV309
D91: ABNRV409 | E91: 1050 x 1400 | H91: 181 | I91: 176 | J91: 172 | L91: 147 | M91: 1050 | N91: 1400 | O91: 210 | P91: Wandgehäuse geerdet IP44 BxHxT: 1050x1400x210mm | Q91: ABNRV409
D92: ABNRV509 | E92: 1300 x 1400 | H92: 221 | I92: 216 | J92: 213 | L92: 182 | M92: 1300 | N92: 1400 | O92: 210 | P92: Wandgehäuse geerdet IP44 BxHxT: 1300x1400x210mm | Q92: ABNRV509
A93: Wandgehäuse Baureihe ABNRS, SK II | B93: ABN | C93: IP44 | D93: ABNRS103 | E93: 300 x 500 | F93: 210 | G93: 400 | H93: 29 | I93: 27 | J93: 24 | L93: 29 | M93: 300 | N93: 500 | O93: 210 | P93: Wandgehäuse schutzisoliert IP44 BxHxT: 300x500x210mm | Q93: ABNRS103
D94: ABNRS203 | E94: 550 x 500 | H94: 45 | I94: 43 | J94: 41 | L94: 45 | M94: 550 | N94: 500 | O94: 210 | P94: Wandgehäuse schutzisoliert IP44 BxHxT: 550x500x210mm | Q94: ABNRS203
D95: ABNRS303 | E95: 800 x 500 | H95: 63 | I95: 61 | J95: 58 | L95: 63 | M95: 800 | N95: 500 | O95: 210 | P95: Wandgehäuse schutzisoliert IP44 BxHxT: 800x500x210mm | Q95: ABNRS303
D96: ABNRS403 | E96: 1050 x 500 | H96: 80 | I96: 78 | J96: 75 | L96: 80 | M96: 1050 | N96: 500 | O96: 210 | P96: Wandgehäuse schutzisoliert IP44 BxHxT: 1050x500x210mm | Q96: ABNRS403
D97: ABNRS503 | E97: 1300 x 500 | H97: 105 | I97: 104 | J97: 103 | L97: 94 | M97: 1300 | N97: 500 | O97: 210 | P97: Wandgehäuse schutzisoliert IP44 BxHxT: 1300x500x210mm | Q97: ABNRS503
O98: 210
B99: ABN | C99: IP44 | D99: ABNRS104 | E99: 300 x 650 | F99: 210 | H99: 35 | I99: 32 | J99: 29 | L99: 35 | M99: 300 | N99: 650 | O99: 210 | P99: Wandgehäuse schutzisoliert IP44 BxHxT: 300x650x210mm | Q99: ABNRS104
D100: ABNRS204 | E100: 550 x 650 | H100: 53 | I100: 50 | J100: 47 | L100: 53 | M100: 550 | N100: 650 | O100: 210 | P100: Wandgehäuse schutzisoliert IP44 BxHxT: 550x650x210mm | Q100: ABNRS204
D101: ABNRS304 | E101: 800 x 650 | H101: 73 | I101: 70 | J101: 67 | L101: 73 | M101: 800 | N101: 650 | O101: 210 | P101: Wandgehäuse schutzisoliert IP44 BxHxT: 800x650x210mm | Q101: ABNRS304
D102: ABNRS404 | E102: 1050 x 650 | H102: 104 | I102: 102 | J102: 100 | L102: 90 | M102: 1050 | N102: 650 | O102: 210 | P102: Wandgehäuse schutzisoliert IP44 BxHxT: 1050x650x210mm | Q102: ABNRS404
D103: ABNRS504 | E103: 1300 x 650 | H103: 126 | I103: 124 | J103: 123 | L103: 111 | M103: 1300 | N103: 650 | O103: 210 | P103: Wandgehäuse schutzisoliert IP44 BxHxT: 1300x650x210mm | Q103: ABNRS504
O104: 210
B105: ABN | C105: IP44 | D105: ABNRS105 | E105: 300 x 800 | F105: 210 | H105: 41 | I105: 38 | J105: 34 | L105: 41 | M105: 300 | N105: 800 | O105: 210 | P105: Wandgehäuse schutzisoliert IP44 BxHxT: 300x800x210mm | Q105: ABNRS105
D106: ABNRS205 | E106: 550 x 800 | H106: 61 | I106: 58 | J106: 54 | L106: 61 | M106: 550 | N106: 800 | O106: 210 | P106: Wandgehäuse schutzisoliert IP44 BxHxT: 550x800x210mm | Q106: ABNRS205
D107: ABNRS305 | E107: 800 x 800 | H107: 95 | I107: 91 | J107: 89 | L107: 79 | M107: 800 | N107: 800 | O107: 210 | P107: Wandgehäuse schutzisoliert IP44 BxHxT: 800x800x210mm | Q107: ABNRS305
D108: ABNRS405 | E108: 1050 x 800 | H108: 121 | I108: 118 | J108: 115 | L108: 103 | M108: 1050 | N108: 800 | O108: 210 | P108: Wandgehäuse schutzisoliert IP44 BxHxT: 1050x800x210mm | Q108: ABNRS405
D109: ABNRS505 | E109: 1300 x 800 | H109: 147 | I109: 144 | J109: 142 | L109: 127 | M109: 1300 | N109: 800 | O109: 210 | P109: Wandgehäuse schutzisoliert IP44 BxHxT: 1300x800x210mm | Q109: ABNRS505
O110: 210
B111: ABN | C111: IP44 | D111: ABNRS106 | E111: 300 x 950 | F111: 210 | H111: 47 | I111: 43 | J111: 39 | L111: 47 | M111: 300 | N111: 950 | O111: 210 | P111: Wandgehäuse schutzisoliert IP44 BxHxT: 300x950x210mm | Q111: ABNRS106
D112: ABNRS206 | E112: 550 x 950 | H112: 69 | I112: 65 | J112: 61 | L112: 69 | M112: 550 | N112: 950 | O112: 210 | P112: Wandgehäuse schutzisoliert IP44 BxHxT: 550x950x210mm | Q112: ABNRS206
D113: ABNRS306 | E113: 800 x 950 | H113: 107 | I113: 103 | J113: 100 | L113: 88 | M113: 800 | N113: 950 | O113: 210 | P113: Wandgehäuse schutzisoliert IP44 BxHxT: 800x950x210mm | Q113: ABNRS306
D114: ABNRS406 | E114: 1050 x 950 | H114: 137 | I114: 133 | J114: 130 | L114: 115 | M114: 1050 | N114: 950 | O114: 210 | P114: Wandgehäuse schutzisoliert IP44 BxHxT: 1050x950x210mm | Q114: ABNRS406
D115: ABNRS506 | E115: 1300 x 950 | H115: 166 | I115: 163 | J115: 161 | L115: 142 | M115: 1300 | N115: 950 | O115: 210 | P115: Wandgehäuse schutzisoliert IP44 BxHxT: 1300x950x210mm | Q115: ABNRS506
O116: 210
B117: ABN | C117: IP44 | D117: ABNRS107 | E117: 300 x 1100 | F117: 210 | H117: 54 | I117: 49 | J117: 44 | L117: 54 | M117: 300 | N117: 1100 | O117: 210 | P117: Wandgehäuse schutzisoliert IP44 BxHxT: 300x1100x210mm | Q117: ABNRS107
D118: ABNRS207 | E118: 550 x 1100 | H118: 86 | I118: 82 | J118: 78 | L118: 68 | M118: 550 | N118: 1100 | O118: 210 | P118: Wandgehäuse schutzisoliert IP44 BxHxT: 550x1100x210mm | Q118: ABNRS207
D119: ABNRS307 | E119: 800 x 1100 | H119: 119 | I119: 114 | J119: 111 | L119: 97 | M119: 800 | N119: 1100 | O119: 210 | P119: Wandgehäuse schutzisoliert IP44 BxHxT: 800x1100x210mm | Q119: ABNRS307
D120: ABNRS407 | E120: 1050 x 1100 | H120: 152 | I120: 148 | J120: 144 | L120: 126 | M120: 1050 | N120: 1100 | O120: 210 | P120: Wandgehäuse schutzisoliert IP44 BxHxT: 1050x1100x210mm | Q120: ABNRS407
D121: ABNRS507 | E121: 1300 x 1100 | H121: 185 | I121: 181 | J121: 178 | L121: 156 | M121: 1300 | N121: 1100 | O121: 210 | P121: Wandgehäuse schutzisoliert IP44 BxHxT: 1300x1100x210mm | Q121: ABNRS507
O122: 210
B123: ABN | C123: IP44 | D123: ABNRS108 | E123: 300 x 1250 | F123: 210 | H123: 60 | I123: 54 | J123: 49 | L123: 60 | M123: 300 | N123: 1250 | O123: 210 | P123: Wandgehäuse schutzisoliert IP44 BxHxT: 300x1250x210mm | Q123: ABNRS108
D124: ABNRS208 | E124: 550 x 1250 | H124: 95 | I124: 90 | J124: 85 | L124: 74 | M124: 550 | N124: 1250 | O124: 210 | P124: Wandgehäuse schutzisoliert IP44 BxHxT: 550x1250x210mm | Q124: ABNRS208
D125: ABNRS308 | E125: 800 x 1250 | H125: 130 | I125: 125 | J125: 121 | L125: 105 | M125: 800 | N125: 1250 | O125: 210 | P125: Wandgehäuse schutzisoliert IP44 BxHxT: 800x1250x210mm | Q125: ABNRS308
D126: ABNRS408 | E126: 1050 x 1250 | H126: 167 | I126: 162 | J126: 158 | L126: 137 | M126: 1050 | N126: 1250 | O126: 210 | P126: Wandgehäuse schutzisoliert IP44 BxHxT: 1050x1250x210mm | Q126: ABNRS408
D127: ABNRS508 | E127: 1300 x 1250 | H127: 203 | I127: 199 | J127: 196 | L127: 169 | M127: 1300 | N127: 1250 | O127: 210 | P127: Wandgehäuse schutzisoliert IP44 BxHxT: 1300x1250x210mm | Q127: ABNRS508
O128: 210
B129: ABN | C129: IP44 | D129: ABNRS109 | E129: 300 x 1400 | F129: 210 | H129: 66 | I129: 60 | J129: 54 | L129: 66 | M129: 300 | N129: 1400 | O129: 210 | P129: Wandgehäuse schutzisoliert IP44 BxHxT: 300x1400x210mm | Q129: ABNRS109
D130: ABNRS209 | E130: 550 x 1400 | H130: 104 | I130: 98 | J130: 93 | L130: 81 | M130: 550 | N130: 1400 | O130: 210 | P130: Wandgehäuse schutzisoliert IP44 BxHxT: 550x1400x210mm | Q130: ABNRS209
D131: ABNRS309 | E131: 800 x 1400 | H131: 142 | I131: 136 | J131: 131 | L131: 112 | M131: 800 | N131: 1400 | O131: 210 | P131: Wandgehäuse schutzisoliert IP44 BxHxT: 800x1400x210mm | Q131: ABNRS309
D132: ABNRS409 | E132: 1050 x 1400 | H132: 181 | I132: 176 | J132: 172 | L132: 147 | M132: 1050 | N132: 1400 | O132: 210 | P132: Wandgehäuse schutzisoliert IP44 BxHxT: 1050x1400x210mm | Q132: ABNRS409
D133: ABNRS509 | E133: 1300 x 1400 | H133: 221 | I133: 216 | J133: 213 | L133: 182 | M133: 1300 | N133: 1400 | O133: 210 | P133: Wandgehäuse schutzisoliert IP44 BxHxT: 1300x1400x210mm | Q133: ABNRS509
A134: Wandgehäuse Baureihe ABNRP, SK II | B134: ABN | C134: IP54 | D134: ABNRP103 | E134: 300 x 500 | F134: 210 | G134: 400 | H134: 29 | I134: 27 | J134: 24 | L134: 29 | M134: 300 | N134: 500 | O134: 210 | P134: Wandgehäuse schutzisoliert IP54 BxHxT: 300x500x210mm | Q134: ABNRP103
D135: ABNRP203 | E135: 550 x 500 | H135: 45 | I135: 43 | J135: 41 | L135: 45 | M135: 550 | N135: 500 | O135: 210 | P135: Wandgehäuse schutzisoliert IP54 BxHxT: 550x500x210mm | Q135: ABNRP203
D136: ABNRP303 | E136: 800 x 500 | H136: 63 | I136: 61 | J136: 58 | L136: 63 | M136: 800 | N136: 500 | O136: 210 | P136: Wandgehäuse schutzisoliert IP54 BxHxT: 800x500x210mm | Q136: ABNRP303
D137: ABNRP403 | E137: 1050 x 500 | H137: 80 | I137: 78 | J137: 75 | L137: 80 | M137: 1050 | N137: 500 | O137: 210 | P137: Wandgehäuse schutzisoliert IP54 BxHxT: 1050x500x210mm | Q137: ABNRP403
D138: ABNRP503 | E138: 1300 x 500 | H138: 105 | I138: 104 | J138: 103 | L138: 94 | M138: 1300 | N138: 500 | O138: 210 | P138: Wandgehäuse schutzisoliert IP54 BxHxT: 1300x500x210mm | Q138: ABNRP503
O139: 210
B140: ABN | C140: IP54 | D140: ABNRP106 | E140: 300 x 950 | F140: 210 | H140: 47 | I140: 43 | J140: 39 | L140: 47 | M140: 300 | N140: 950 | O140: 210 | P140: Wandgehäuse schutzisoliert IP54 BxHxT: 300x950x210mm | Q140: ABNRP106
D141: ABNRP206 | E141: 550 x 950 | H141: 69 | I141: 65 | J141: 61 | L141: 69 | M141: 550 | N141: 950 | O141: 210 | P141: Wandgehäuse schutzisoliert IP54 BxHxT: 550x950x210mm | Q141: ABNRP206
D142: ABNRP306 | E142: 800 x 950 | H142: 107 | I142: 103 | J142: 100 | L142: 88 | M142: 800 | N142: 950 | O142: 210 | P142: Wandgehäuse schutzisoliert IP54 BxHxT: 800x950x210mm | Q142: ABNRP306
D143: ABNRP406 | E143: 1050 x 950 | H143: 137 | I143: 133 | J143: 130 | L143: 115 | M143: 1050 | N143: 950 | O143: 210 | P143: Wandgehäuse schutzisoliert IP54 BxHxT: 1050x950x210mm | Q143: ABNRP406
D144: ABNRP506 | E144: 1300 x 950 | H144: 166 | I144: 163 | J144: 161 | L144: 142 | M144: 1300 | N144: 950 | O144: 210 | P144: Wandgehäuse schutzisoliert IP54 BxHxT: 1300x950x210mm | Q144: ABNRP506
O145: 210
B146: ABN | C146: IP54 | D146: ABNRP107 | E146: 300 x 1100 | F146: 210 | H146: 54 | I146: 49 | J146: 44 | L146: 54 | M146: 300 | N146: 1100 | O146: 210 | P146: Wandgehäuse schutzisoliert IP54 BxHxT: 300x1100x210mm | Q146: ABNRP107
D147: ABNRP207 | E147: 550 x 1100 | H147: 86 | I147: 82 | J147: 78 | L147: 68 | M147: 550 | N147: 1100 | O147: 210 | P147: Wandgehäuse schutzisoliert IP54 BxHxT: 550x1100x210mm | Q147: ABNRP207
D148: ABNRP307 | E148: 800 x 1100 | H148: 119 | I148: 114 | J148: 111 | L148: 97 | M148: 800 | N148: 1100 | O148: 210 | P148: Wandgehäuse schutzisoliert IP54 BxHxT: 800x1100x210mm | Q148: ABNRP307
D149: ABNRP407 | E149: 1050 x 1100 | H149: 152 | I149: 148 | J149: 144 | L149: 126 | M149: 1050 | N149: 1100 | O149: 210 | P149: Wandgehäuse schutzisoliert IP54 BxHxT: 1050x1100x210mm | Q149: ABNRP407
D150: ABNRP507 | E150: 1300 x 1100 | H150: 185 | I150: 181 | J150: 178 | L150: 156 | M150: 1300 | N150: 1100 | O150: 210 | P150: Wandgehäuse schutzisoliert IP54 BxHxT: 1300x1100x210mm | Q150: ABNRP507
O151: 210
B152: ABN | C152: IP54 | D152: ABNRP109 | E152: 300 x 1400 | F152: 210 | H152: 66 | I152: 60 | J152: 54 | L152: 66 | M152: 300 | N152: 1400 | O152: 210 | P152: Wandgehäuse schutzisoliert IP54 BxHxT: 300x1400x210mm | Q152: ABNRP109
D153: ABNRP209 | E153: 550 x 1400 | H153: 104 | I153: 98 | J153: 93 | L153: 81 | M153: 550 | N153: 1400 | O153: 210 | P153: Wandgehäuse schutzisoliert IP54 BxHxT: 550x1400x210mm | Q153: ABNRP209
D154: ABNRP309 | E154: 800 x 1400 | H154: 142 | I154: 136 | J154: 131 | L154: 112 | M154: 800 | N154: 1400 | O154: 210 | P154: Wandgehäuse schutzisoliert IP54 BxHxT: 800x1400x210mm | Q154: ABNRP309
D155: ABNRP409 | E155: 1050 x 1400 | H155: 181 | I155: 176 | J155: 172 | L155: 147 | M155: 1050 | N155: 1400 | O155: 210 | P155: Wandgehäuse schutzisoliert IP54 BxHxT: 1050x1400x210mm | Q155: ABNRP409
D156: ABNRP509 | E156: 1300 x 1400 | H156: 221 | I156: 216 | J156: 213 | L156: 182 | M156: 1300 | N156: 1400 | O156: 210 | P156: Wandgehäuse schutzisoliert IP54 BxHxT: 1300x1400x210mm | Q156: ABNRP509
A157: Wandgehäuse Baureihe SE, SK I | B157: ABN | C157: IP54 | D157: SE13 | E157: 300 x 500 | F157: 225 | G157: 400 | H157: 30 | I157: 28 | J157: 25 | L157: 30 | M157: 300 | N157: 500 | O157: 225 | P157: Wandgehäuse geerdet 300x500x225mm IP54 | Q157: SE13
D158: SE23 | E158: 550 x 500 | H158: 47 | I158: 45 | J158: 42 | L158: 47 | M158: 550 | N158: 500 | O158: 225 | P158: Wandgehäuse geerdet 550x500x225mm IP54 | Q158: SE23
D159: SE33 | E159: 800 x 500 | H159: 65 | I159: 63 | J159: 60 | L159: 65 | M159: 800 | N159: 500 | O159: 225 | P159: Wandgehäuse geerdet 800x500x225mm IP54 | Q159: SE33
D160: SE43 | E160: 1050 x 500 | H160: 81 | I160: 80 | J160: 78 | L160: 80 | M160: 1050 | N160: 500 | O160: 225 | P160: Wandgehäuse geerdet 1050x500x225mm IP54 | Q160: SE43
D161: SE53 | E161: 1300 x 500 | H161: 110 | I161: 108 | J161: 107 | L161: 98 | M161: 1300 | N161: 500 | O161: 225 | P161: Wandgehäuse geerdet 1300x500x225mm IP54 | Q161: SE53
O162: 225
B163: ABN | C163: IP54 | D163: SE14 | E163: 300 x 650 | F163: 225 | H163: 37 | I163: 34 | J163: 30 | L163: 37 | M163: 300 | N163: 650 | O163: 225 | P163: Wandgehäuse geerdet 300x650x225mm IP54 | Q163: SE14
D164: SE24 | E164: 550 x 650 | H164: 55 | I164: 52 | J164: 49 | L164: 55 | M164: 550 | N164: 650 | O164: 225 | P164: Wandgehäuse geerdet 550x650x225mm IP54 | Q164: SE24
D165: SE34 | E165: 800 x 650 | H165: 76 | I165: 73 | J165: 69 | L165: 76 | M165: 800 | N165: 650 | O165: 225 | P165: Wandgehäuse geerdet 800x650x225mm IP54 | Q165: SE34
D166: SE44 | E166: 1050 x 650 | H166: 108 | I166: 106 | J166: 104 | L166: 94 | M166: 1050 | N166: 650 | O166: 225 | P166: Wandgehäuse geerdet 1050x650x225mm IP54 | Q166: SE44
D167: SE54 | E167: 1300 x 650 | H167: 131 | I167: 129 | J167: 127 | L167: 115 | M167: 1300 | N167: 650 | O167: 225 | P167: Wandgehäuse geerdet 1300x650x225mm IP54 | Q167: SE54
O168: 225
B169: ABN | C169: IP54 | D169: SE15 | E169: 300 x 800 | F169: 225 | H169: 43 | I169: 39 | J169: 35 | L169: 43 | M169: 300 | N169: 800 | O169: 225 | P169: Wandgehäuse geerdet 300x800x225mm IP54 | Q169: SE15
D170: SE25 | E170: 550 x 800 | H170: 64 | I170: 60 | J170: 56 | L170: 64 | M170: 550 | N170: 800 | O170: 225 | P170: Wandgehäuse geerdet 550x800x225mm IP54 | Q170: SE25
D171: SE35 | E171: 800 x 800 | H171: 99 | I171: 95 | J171: 92 | L171: 84 | M171: 800 | N171: 800 | O171: 225 | P171: Wandgehäuse geerdet 800x800x225mm IP54 | Q171: SE35
D172: SE45 | E172: 1050 x 800 | H172: 126 | I172: 122 | J172: 119 | L172: 108 | M172: 1050 | N172: 800 | O172: 225 | P172: Wandgehäuse geerdet 1050x800x225mm IP54 | Q172: SE45
D173: SE55 | E173: 1300 x 800 | H173: 152 | I173: 149 | J173: 147 | L173: 132 | M173: 1300 | N173: 800 | O173: 225 | P173: Wandgehäuse geerdet 1300x800x225mm IP54 | Q173: SE55
O174: 225
B175: ABN | C175: IP54 | D175: SE16 | E175: 300 x 950 | F175: 225 | H175: 50 | I175: 44 | J175: 40 | L175: 50 | M175: 300 | N175: 950 | O175: 225 | P175: Wandgehäuse geerdet 300x950x225mm IP54 | Q175: SE16
D176: SE26 | E176: 550 x 950 | H176: 72 | I176: 68 | J176: 63 | L176: 66 | M176: 550 | N176: 950 | O176: 225 | P176: Wandgehäuse geerdet 550x950x225mm IP54 | Q176: SE26
D177: SE36 | E177: 800 x 950 | H177: 112 | I177: 107 | J177: 104 | L177: 93 | M177: 800 | N177: 950 | O177: 225 | P177: Wandgehäuse geerdet 800x950x225mm IP54 | Q177: SE36
D178: SE46 | E178: 1050 x 950 | H178: 142 | I178: 138 | J178: 135 | L178: 120 | M178: 1050 | N178: 950 | O178: 225 | P178: Wandgehäuse geerdet 1050x950x225mm IP54 | Q178: SE46
D179: SE56 | E179: 1300 x 950 | H179: 172 | I179: 168 | J179: 166 | L179: 148 | M179: 1300 | N179: 950 | O179: 225 | P179: Wandgehäuse geerdet 1300x950x225mm IP54 | Q179: SE56
O180: 225
B181: ABN | C181: IP54 | D181: SE17 | E181: 300 x 1100 | F181: 225 | H181: 56 | I181: 51 | J181: 46 | L181: 56 | M181: 300 | N181: 1100 | O181: 225 | P181: Wandgehäuse geerdet 300x1100x225mm IP54 | Q181: SE17
D182: SE27 | E182: 550 x 1100 | H182: 91 | I182: 85 | J182: 81 | L182: 72 | M182: 550 | N182: 1100 | O182: 225 | P182: Wandgehäuse geerdet 550x1100x225mm IP54 | Q182: SE27
D183: SE37 | E183: 800 x 1100 | H183: 124 | I183: 119 | J183: 115 | L183: 101 | M183: 800 | N183: 1100 | O183: 225 | P183: Wandgehäuse geerdet 800x1100x225mm IP54 | Q183: SE37
D184: SE47 | E184: 1050 x 1100 | H184: 158 | I184: 153 | J184: 149 | L184: 132 | M184: 1050 | N184: 1100 | O184: 225 | P184: Wandgehäuse geerdet 1050x1100x225mm IP54 | Q184: SE47
D185: SE57 | E185: 1300 x 1100 | H185: 192 | I185: 187 | J185: 184 | L185: 162 | M185: 1300 | N185: 1100 | O185: 225 | P185: Wandgehäuse geerdet 1300x1100x225mm IP54 | Q185: SE57
O186: 225
B187: ABN | C187: IP54 | D187: SE18 | E187: 300 x 1250 | F187: 225 | H187: 62 | I187: 56 | J187: 51 | L187: 62 | M187: 300 | N187: 1250 | O187: 225 | P187: Wandgehäuse geerdet 300x1250x225mm IP54 | Q187: SE18
D188: SE28 | E188: 550 x 1250 | H188: 100 | I188: 94 | J188: 88 | L188: 78 | M188: 550 | N188: 1250 | O188: 225 | P188: Wandgehäuse geerdet 550x1250x225mm IP54 | Q188: SE28
D189: SE38 | E189: 800 x 1250 | H189: 136 | I189: 130 | J189: 125 | L189: 110 | M189: 800 | N189: 1250 | O189: 225 | P189: Wandgehäuse geerdet 800x1250x225mm IP54 | Q189: SE38
D190: SE48 | E190: 1050 x 1250 | H190: 173 | I190: 168 | J190: 163 | L190: 143 | M190: 1050 | N190: 1250 | O190: 225 | P190: Wandgehäuse geerdet 1050x1250x225mm IP54 | Q190: SE48
D191: SE58 | E191: 1300 x 1250 | H191: 210 | I191: 205 | J191: 202 | L191: 176 | M191: 1300 | N191: 1250 | O191: 225 | P191: Wandgehäuse geerdet 1300x1250x225mm IP54 | Q191: SE58
O192: 225
B193: ABN | C193: IP54 | D193: SE19 | E193: 300 x 1400 | F193: 225 | H193: 68 | I193: 62 | J193: 55 | L193: 68 | M193: 300 | N193: 1400 | O193: 225 | P193: Wandgehäuse geerdet 300x1400x225mm IP54 | Q193: SE19
D194: SE29 | E194: 550 x 1400 | H194: 108 | I194: 101 | J194: 95 | L194: 84 | M194: 550 | N194: 1400 | O194: 225 | P194: Wandgehäuse geerdet 550x1400x225mm IP54 | Q194: SE29
D195: SE39 | E195: 800 x 1400 | H195: 148 | I195: 141 | J195: 136 | L195: 118 | M195: 800 | N195: 1400 | O195: 225 | P195: Wandgehäuse geerdet 800x1400x225mm IP54 | Q195: SE39
D196: SE49 | E196: 1050 x 1400 | H196: 188 | I196: 182 | J196: 177 | L196: 153 | M196: 1050 | N196: 1400 | O196: 225 | P196: Wandgehäuse geerdet 1050x1400x225mm IP54 | Q196: SE49
D197: SE59 | E197: 1300 x 1400 | H197: 228 | I197: 223 | J197: 219 | L197: 190 | M197: 1300 | N197: 1400 | O197: 225 | P197: Wandgehäuse geerdet 1300x1400x225mm IP54 | Q197: SE59
A198: Wandgehäuse Baureihe SP, SK II | B198: ABN | C198: IP54 | D198: SP13 | E198: 300 x 500 | F198: 225 | G198: 400 | H198: 30 | I198: 28 | J198: 25 | L198: 30 | M198: 300 | N198: 500 | O198: 225 | P198: Wandgehäuse schutzisoliert 300x502x225mm IP54 | Q198: SP13
D199: SP23 | E199: 550 x 500 | H199: 47 | I199: 45 | J199: 42 | L199: 47 | M199: 550 | N199: 500 | O199: 225 | P199: Wandgehäuse schutzisoliert 550x502x225mm IP54 | Q199: SP23
D200: SP33 | E200: 800 x 500 | H200: 65 | I200: 63 | J200: 60 | L200: 65 | M200: 800 | N200: 500 | O200: 225 | P200: Wandgehäuse schutzisoliert 800x502x225mm IP54 | Q200: SP33
... 270 more rows

Sheet Tabelle 2 - Pab_Outdoor-Gehäuse
A1: Tabelle Gehäuse-System: Angaben zur Wärmeberechnung gemäß DIN EN 61439-1, -2, -3 | H1: Abstrahlbare Verlustleistung | I1: BxHxT für Wärmeberechung (ohne Sockel) [mm] | L1: Beschreibung
A3: Schrankart | B3: Hersteller | C3: Schutzart | D3: Typ | E3: Ausführung | F3: B x H [mm] | G3: Tiefe [mm] | H3: Beideseitg Frei Ruckwand Frei, 20K 75% Gehäusehöhe | I3: B,mm | J3: H,mm | K3: T,mm
A5: Verteilersäule
A6: Verteilersäule Baureihe SL175 Bauhöhe 5 | B6: ABN | C6: IP44 | D6: SL175 | E6: Leergehäuse | F6: 583 x 1710 | G6: 277 | H6: 116 | I6: 583 | J6: 1060 | K6: 277 | L6: Anschlusssäule FB2 BH5 ohne Ausbau mit Sockel Doppelschließung 1 Zylinder | M6: 277
D7: SL175P | E7: Leergehäuse mit Montageplatte | F7: 583 x 1710 | H7: 116 | I7: 583 | J7: 1060 | K7: 277 | L7: Anschlusssäule FB2 BH5 mit Montageplatte Doppelschließung 1 Zylinder | M7: 277
D8: SL175VT | E8: Systemgehäuse mit Ausbausystem Prisma XS | F8: 583 x 1710 | H8: 62 | I8: 540 | J8: 751 | K8: 140 | L8: Anschlusssäule FB2 BH5 Prisma XS-Volltür Doppelschließung 1 Zylinder | M8: 277
M9: 277
A10: Verteilersäule Baureihe SL20. Bauhöhe 7 | B10: ABN | C10: IP44 | D10: SL205 | E10: Leergehäuse | F10: 583 x 2010 | G10: 277 | H10: 139 | I10: 583 | J10: 1360 | K10: 277 | L10: Anschlusssäule FB2 BH7 ohne Ausbau mit Sockel Doppelschließung 1 Zylinder | M10: 277
D11: SL205P | E11: Leergehäuse mit Montageplatte | F11: 583 x 2010 | H11: 139 | I11: 583 | J11: 1360 | K11: 277 | L11: Anschlusssäule FB2 BH7 mit Montageplatte Doppelschließung 1 Zylinder | M11: 277
D12: SL205VT | E12: Systemgehäuse mit Ausbausystem Prisma XS | F12: 583 x 2010 | H12: 81 | I12: 540 | J12: 1051 | K12: 140 | L12: Anschlusssäule FB2 BH7 Prisma XS-Volltür Doppelschließung 1 Zylinder | M12: 277
M13: 277
A14: Verteilersäule Baureihe SL20. Bauhöhe 7 | B14: ABN | C14: IP44 | D14: SL207 | E14: Leergehäuse | F14: 838 x 2010 | G14: 277 | H14: 183 | I14: 838 | J14: 1300 | K14: 277 | L14: Anschlusssäule FB3 BH7 1 Zylinder eingebaut Doppelschließung | M14: 277
D15: SL207P | E15: Leergehäuse mit Montageplatte | F15: 838 x 2010 | H15: 183 | I15: 838 | J15: 1300 | K15: 277 | L15: Anschlusssäule FB3 BH7 mit Montageplatte 1 Zylinder eingebaut | M15: 277
D16: SL207VT | E16: Systemgehäuse mit Ausbausystem Prisma XS | F16: 838 x 2010 | H16: 109 | I16: 747 | J16: 1051 | K16: 140 | L16: Anschlusssäule FB3 BH7 Prisma XS-Volltür H:2010mm | M16: 277
A18: Anschlussschränke
A19: Anschlussschrank Baureihe SL100 Bauhöhe 6 | B19: ABN | C19: IP44 | D19: SL100 | E19: Leergehäuse | F19: 585 x 1005 | G19: 315 | H19: 120 | L19: Kabelverteilerschrank FB2 BH6 ohne Ausbau Gr.0/1005mm Doppelschließung 1 Zylinder | M19: 315
D20: SL100P | E20: Leergehäuse mit Montageplatte | F20: 585 x 1005 | H20: 120 | L20: Kabelverteilerschrank FB2 BH6 mit Montageplatte Gr.0/1005mm Doppelschließung 1 Zylinder | M20: 315
D21: SL100VT | E21: Systemgehäuse mit Ausbausystem Prisma XS | F21: 585 x 1005 | H21: 68 | I21: 514 | J21: 901 | K21: 140 | L21: Kabelverteilerschrank FB2 BH6 Prisma XS-Volltür Gr.0/1005mm Doppelschließung 1 Zylinder | M21: 315
M22: 315
A23: Anschlussschrank Baureihe SL101 Bauhöhe 6 | B23: ABN | C23: IP44 | D23: SL101 | E23: Leergehäuse | F23: 780 x 1005 | G23: 315 | H23: 151 | J23: - | L23: Kabelverteilerschrank FB3 BH6 ohne Ausbau Gr.1/1005mm Doppelschließung 1 Zylinder | M23: 315
D24: SL101P | E24: Leergehäuse mit Montageplatte | F24: 780 x 1005 | H24: 151 | J24: - | L24: Kabelverteilerschrank FB3 BH6 mit Montageplatte Gr.1/1005mm Doppelschließung 1 Zylinder | M24: 315
D25: SL101VT | E25: Systemgehäuse mit Ausbausystem Prisma XS | F25: 780 x 1005 | H25: 97 | I25: 750 | J25: 901 | K25: 140 | L25: Kabelverteilerschrank FB3 BH6 Prisma XS-Volltür Gr.1/1005mm Doppelschließung 1 Zylinder | M25: 315
M26: 315
A27: Anschlussschrank Baureihe SL102 Bauhöhe 6 | B27: ABN | C27: IP44 | D27: SL102 | E27: Leergehäuse | F27: 1110 x 1005 | G27: 315 | H27: 205 | J27: - | L27: Kabelverteilerschrank FB4 BH6 ohne Ausbau Gr.2/1005mm Doppelschließung 1 Zylinder | M27: 315
D28: SL102P | E28: Leergehäuse mit Montageplatte | F28: 1110 x 1005 | H28: 205 | J28: - | L28: Kabelverteilerschrank FB4 BH6 mit Montageplatte Gr.2/1005mm Doppelschließung 1 Zylinder | M28: 315
D29: SL102VT | E29: Systemgehäuse mit Ausbausystem Prisma XS | F29: 1110 x 1005 | H29: 133 | I29: 1039 | J29: 901 | K29: 140 | L29: Kabelverteilerschrank FB4 BH6 Prisma XS-Volltür Gr.2/1005mm Doppelschließung 1 Zylinder | M29: 315
M30: 315
A31: Anschlussschrank Baureihe SL103 Bauhöhe 6 | B31: ABN | C31: IP44 | D31: SL103 | E31: Leergehäuse | F31: 1445 x 1080 | G31: 315 | H31: 273 | J31: - | L31: Kabelverteilerschrank FB5 BH8 ohne Ausbau Gr.3/1065mm Doppelschließung 1 Zylinder | M31: 315
D32: SL103P | E32: Leergehäuse mit Montageplatte | F32: 1445 x 1080 | H32: 273 | J32: - | L32: Kabelverteilerschrank FB5 BH8 mit Montageplatte Gr.3/1065mm Doppelschließung 1 Zylinder | M32: 315
D33: SL103VT | E33: Systemgehäuse mit Ausbausystem Prisma XS | F33: 1445 x 1080 | H33: 175 | I33: 1369 | J33: 901 | K33: 140 | L33: Kabelverteilerschrank FB5 BH8 Prisma XS-Volltür Gr.3/1065mm Doppelschließung 1 Zylinder | M33: 315
M34: 315
A35: Anschlussschrank Baureihe SL130 Bauhöhe 8 | B35: ABN | C35: IP44 | D35: SL130 | E35: Leergehäuse | F35: 585 x 1335 | G35: 315 | H35: 147 | J35: - | L35: Kabelverteilerschrank FB2 BH8 ohne Ausbau Gr.0/1355mm Doppelschließung 1 Zylinder | M35: 315
D36: SL130P | E36: Leergehäuse mit Montageplatte | F36: 585 x 1335 | H36: 147 | J36: - | L36: Kabelverteilerschrank FB2 BH8 mit Montageplatte Gr.0/1355mm Doppelschließung 1 Zylinder | M36: 315
D37: SL130VT | E37: Systemgehäuse mit Ausbausystem Prisma XS | F37: 585 x 1335 | H37: 88 | I37: 514 | J37: 1201 | K37: 140 | L37: Kabelverteilerschrank FB2 BH8 Prisma XS-Volltür Gr.0/1355mm Doppelschließung 1 Zylinder | M37: 315
M38: 315
A39: Anschlussschrank Baureihe SL131 Bauhöhe 8 | B39: ABN | C39: IP44 | D39: SL131 | E39: Leergehäuse | F39: 780 x 1335 | G39: 315 | H39: 186 | J39: - | L39: Kabelverteilerschrank FB3 BH8 ohne Ausbau Gr.1/1355mm Doppelschließung 1 Zylinder | M39: 315
D40: SL131P | E40: Leergehäuse mit Montageplatte | F40: 780 x 1335 | H40: 186 | J40: - | L40: Kabelverteilerschrank FB3 BH8 mit Montageplatte Gr.1/1355mm Doppelschließung 1 Zylinder | M40: 315
D41: SL131VT | E41: Systemgehäuse mit Ausbausystem Prisma XS | F41: 780 x 1335 | H41: 121 | I41: 750 | J41: 1201 | K41: 140 | L41: Kabelverteilerschrank FB3 BH8 Prisma XS-Volltür Gr.1/1355mm Doppelschließung 1 Zylinder | M41: 315
M42: 315
A43: Anschlussschrank Baureihe SL132 Bauhöhe 8 | B43: ABN | C43: IP44 | D43: SL132 | E43: Leergehäuse | F43: 1110 x 1335 | G43: 315 | H43: 253 | J43: - | L43: Kabelverteilerschrank FB4 BH8 ohne Ausbau Gr.2/1355mm Doppelschließung 1 Zylinder | M43: 315
D44: SL132P | E44: Leergehäuse mit Montageplatte | F44: 1110 x 1335 | H44: 253 | J44: - | L44: Kabelverteilerschrank FB4 BH8 mit Montageplatte Gr.2/1355mm Doppelschließung 1 Zylinder | M44: 315
D45: SL132VT | E45: Systemgehäuse mit Ausbausystem Prisma XS | F45: 1110 x 1335 | H45: 165 | I45: 1039 | J45: 1201 | K45: 140 | L45: Kabelverteilerschrank FB4 BH8 Prisma XS-Volltür Gr.2/1355mm Doppelschließung 1 Zylinder | M45: 315
M46: 315
A47: Anschlussschrank Baureihe SL133 Bauhöhe 8 | B47: ABN | C47: IP44 | D47: ABNFG133L00 | E47: Leergehäuse | F47: 1445 x 1350 | G47: 315 | H47: 326 | J47: - | L47: Kabelverteilerschrank FB5 BH8 ohne Ausbau Gr.3/1350mm Doppelschließung 1 Zylinder | M47: 315
D48: ABNFG133M20 | E48: Leergehäuse mit Montageplatte | F48: 1445 x 1350 | H48: 326 | J48: - | L48: Kabelverteilerschrank FB5 BH8 mit Montageplatte Gr.3/1350mm Doppelschließung 1 Zylinder | M48: 315
D49: ABNFG133L06 | E49: Systemgehäuse mit Ausbausystem Prisma XS | F49: 1445 x 1350 | H49: 224 | I49: 1369 | J49: 1245 | K49: 140 | L49: Kabelverteilerschrank FB5 BH8 Prisma XS-Volltür Gr.3/1350mm Doppelschließung 1 Zylinder | M49: 315

Sheet Tabelle 3 - Pv_Einbaugeräte
B1: Tabelle Einbaugeräte:
A3: Gruppe | B3: Geräteart | C3: Typ / Bestellnummer | D3: Bemerkung | E3: Hersteller | F3: Bemessungs strom des Gerätes In [A] | G3: Verlustleistung Pro Pol bei Bemessungsstrom in Watt | H3: Verlustleistung des Gerätes bei Bemessungsstrom in Watt | I3: Verlustleistung der Sicherung (pro Pol) bei Bemessungsstrom | J3: Verlustleistung Bemessungsstrom (pro Pol) PV / W Summe Spalte G + H | K3: Beschreibung
B4: Sicherungslasttrennschalter
A5: Sicherungslasttrennschalter | B5: Sicherungslasttrennschalter NH 000, einschl. Sicherung | C5: E-XTR506EU | D5: NH-Trenner SaS 40mm, 3 Pol | E5: ABN | F5: 100 | G5: =H5/3 -> 4.333333333 | H5: 13 | I5: 6.6 | J5: =G5+I5 -> 10.93333333 | K5: NH000-SLT 690V AC, 3-polig für SAS 40/12mm Abgang unten, Rahmenklemme 2,5-50mm²
A6: Sicherungslasttrennschalter | C6: E-XTR506EO | E6: ABN | F6: 100 | G6: =H6/3 -> 4.333333333 | H6: 13 | I6: 6.6 | J6: =G6+I6 -> 10.93333333 | K6: NH000-SLT 690V AC, 3-polig für SAS 40/12mm Abgang oben, Rahmenklemme 2,5-50mm²
A7: Sicherungslasttrennschalter | C7: XTR606 | D7: NH-Trenner SaS 60mm, 3 Pol | E7: ABN | F7: 100 | G7: =H7/3 -> 3.666666667 | H7: 11 | I7: 6.6 | J7: =G7+I7 -> 10.26666667 | K7: NH Trenner Gr.000 Abgang oben SaS 60mm EBM 32/70mm
A8: Sicherungslasttrennschalter | C8: XTR606U | E8: ABN | F8: 100 | G8: =H8/3 -> 3.666666667 | H8: 11 | I8: 6.6 | J8: =G8+I8 -> 10.26666667 | K8: NH Trenner Gr.000 Abgang unten SaS 60mm EBM 32/70mm
A9: Sicherungslasttrennschalter | C9: LV480751 | E9: ABN | F9: 100 | G9: 3.666666667 | H9: 11 | I9: 6.6 | J9: 10.26666667 | K9: Sicherungslasttrennschalter ISFT100N 3P Anschluss 60 mm Sammelschiene
A10: Sicherungslasttrennschalter | C10: LV480752 | E10: ABN | F10: 100 | G10: 3.666666667 | H10: 11 | I10: 6.6 | J10: 10.26666667 | K10: Sicherungslasttrennschalter ISFT100N 3P Anschluss 60 mm Sammelschiene
A11: Sicherungslasttrennschalter | C11: LV480750 | D11: NH-Trenner MPL, 3 Pol | E11: ABN | F11: 100 | G11: =H11/3 -> 3.666666667 | H11: 11 | I11: 6.6 | J11: =G11+I11 -> 10.26666667 | K11: Sicherungslasttrennschalter ISFT100N 3p Anschluss 2,5 bis 50qmm Montageplatte
A12: Sicherungslasttrennschalter | B12: Sicherungslasttrennschalter NH 00, einschl. Sicherung | C12: E-XTR209 | D12: NH-Trenner SaS 40mm, 3Pol | E12: ABN | F12: 160 | G12: =H12/3 -> 4 | H12: 12 | I12: 11.2 | J12: =G12+I12 -> 15.2 | K12: NH-Trenner Gr.00 DTL160FTSW/BK Montage a.Ssch. 40mm
A13: Sicherungslasttrennschalter | C13: XTR209 | E13: ABN | F13: 160 | G13: =H13/3 -> 4 | H13: 12 | I13: 11.2 | J13: =G13+I13 -> 15.2 | K13: NH-Trenner Gr.00 mit Brückenklemme_SaS40 Montage auf Sammelschienen 40mm
A14: Sicherungslasttrennschalter | C14: XTR509 | E14: ABN | F14: 160 | G14: =H14/3 -> 6.333333333 | H14: 19 | I14: 11.2 | J14: =G14+I14 -> 17.53333333 | K14: NH Trenner Gr.00 Universal-Anschluß SaS 40mm EBM 70mm
A15: Sicherungslasttrennschalter | C15: XTR609 | D15: NH-Trenner SaS 60mm, 3Pol | E15: ABN | F15: 160 | G15: 5.666666667 | H15: 17 | I15: 11.2 | J15: 16.86666667 | K15: NH Trenner Gr.00 Universal-Anschluß SaS 60mm EBM 70mm
A16: Sicherungslasttrennschalter | C16: XTR609K | E16: ABN | F16: 160 | G16: =H16/3 -> 5.666666667 | H16: 17 | I16: 11.2 | J16: =G16+I16 -> 16.86666667 | K16: NH Trenner Gr.00 Kastenklemme SaS 60mm EBM 32/70mm
A17: Sicherungslasttrennschalter | C17: LV480803 | E17: ABN | F17: 160 | G17: =H17/3 -> 5.666666667 | H17: 17 | I17: 11.2 | J17: =G17+I17 -> 16.86666667 | K17: Sicherungslasttrennschalter ISFT160 3P Anschluss 60 mm Sammelschiene
A18: Sicherungslasttrennschalter | C18: XTR408 | E18: ABN | F18: 160 | G18: 5.9 | I18: 11.2 | J18: =G18+I18 -> 17.1 | K18: NH-Trenner Gr.00 mit Brückenklemme Montage auf Sammelschienen 60mm (Wöhner)
A19: Sicherungslasttrennschalter | C19: XTL703 | D19: NH-LS-Leiste SaS 60mm, 3Pol | E19: ABN | F19: 160 | G19: =H19/3 -> 6.666666667 | H19: 20 | I19: 11.2 | J19: =G19+I19 -> 17.86666667 | K19: NH-Trennerleiste Gr.00 Universal-Anschluß EBM 70mm auf SaS 60mm
A20: Sicherungslasttrennschalter | C20: LV480850 | E20: ABN | F20: 160 | G20: =H20/3 -> 6.666666667 | H20: 20 | I20: 11.2 | J20: =G20+I20 -> 17.86666667 | K20: Sicherungslasttrennschalter ISFL160 3P Anschluss 60 mm Sammelschiene M8
A21: Sicherungslasttrennschalter | C21: EH041AAC | D21: NH-LS-Leiste SaS 185mm, 3Pol | E21: ABN | F21: 160 | G21: 7.333333333 | H21: 22 | I21: 11.2 | J21: 18.53333333 | K21: NH-Sicherungslastschalter-Leiste Gr.00 690V/160A Schraubanschluss M8x20mm 1p Schaltbar
A22: Sicherungslasttrennschalter | C22: EH041CAD | E22: ABN | F22: 160 | G22: =H22/3 -> 7.333333333 | H22: 22 | I22: 11.2 | J22: =G22+I22 -> 18.53333333 | K22: NH-Sicherungslastschaltleiste Gr.00 V-Klemme 95 mm² se 1p schaltbar 690V/160A
A23: Sicherungslasttrennschalter | C23: EH052CAD | E23: ABN | F23: 160 | G23: 7.333333333 | H23: 22 | I23: 11.2 | J23: 18.53333333 | K23: NH-Sicherungsleiste Größe 00 Stahlrahmen V-Klemme 10-95 mm² 690V/160A
A24: Sicherungslasttrennschalter | C24: XTL903W | D24: NH-LS-Leiste SaS 185mm, 3Pol | E24: ABN | F24: 160 | G24: =H24/3 -> 7.333333333 | H24: 22 | I24: 11.2 | J24: =G24+I24 -> 18.53333333 | K24: NH-Trennerleiste Gr.00 für Wandler EBM 150mm auf SaS 185mm
A25: Sicherungslasttrennschalter | C25: XTL904 | E25: ABN | F25: 160 | G25: =H25/3 -> 7.333333333 | H25: 22 | I25: 11.2 | J25: 18.53333333 | K25: NH-Trennerleiste Gr.00 EBM 125mm auf SaS 185mm Universal-Anschluß
A26: Sicherungslasttrennschalter | C26: XTL903 | E26: ABN | F26: 160 | G26: =H26/3 -> 7.333333333 | H26: 22 | I26: 11.2 | J26: 18.53333333 | K26: NH-Trennerleiste Gr.00 EBM 150mm auf SaS 185mm Universal-Anschluß
A27: Sicherungslasttrennschalter | C27: XTR309 | D27: NH-Trenner, MPL, 3Pol | E27: ABN | F27: 160 | G27: =H27/3 -> 4.333333333 | H27: 13 | I27: 11.2 | J27: =G27+I27 -> 15.53333333 | K27: NH Trenner Gr.00 Universal-Anschluß Montage auf Montage-Traverse
A28: Sicherungslasttrennschalter | C28: LV480801 | E28: ABN | F28: 160 | G28: =H28/3 -> 4.333333333 | H28: 13 | I28: 11.2 | J28: =G28+I28 -> 15.53333333 | K28: Sicherungslasttrennschalter ISFT160 3P Anschluss M8 Montageplatte
A29: Sicherungslasttrennschalter | B29: Sicherungslasttrennschalter NH 1, einschl. Sicherung | C29: XTR512 | D29: NH-Trenner, SaS 40mm, 3Pol | E29: ABN | F29: 250 | G29: =H29/3 -> 8.666666667 | H29: 26 | I29: 17 | J29: =G29+I29 -> 25.66666667 | K29: NH Trenner Gr.1 Universal-Anschluß SaS 40mm EBM 70mm
A30: Sicherungslasttrennschalter | C30: XTR513E | E30: ABN | F30: 250 | G30: =H30/3 -> 9 | H30: 27 | I30: 17 | J30: =G30+I30 -> 26 | K30: Einspeise Trenner NH1 Schraubanschluß M10 (Jung) Für Sammelschienen 40mm, EBM 70mm Abgang oben
A31: Sicherungslasttrennschalter | C31: XTR513EU | E31: ABN | F31: 250 | G31: =H31/3 -> 9 | H31: 27 | I31: 17 | J31: =G31+I31 -> 26 | K31: Einspeise Trenner NH1 Schraubanschluß M10 (Jung) Für Sammelschienen 40mm, EBM 70mm Abgang unten
A32: Sicherungslasttrennschalter | C32: XTR712 | D32: NH-Trenner, SaS 60mm, 3Pol | E32: ABN | F32: 250 | G32: 7.666666667 | H32: 23 | I32: 17 | J32: 24.66666667 | K32: NH Trenner Gr.1 Universal-Anschluß SaS 60mm EBM 70mm
A33: Sicherungslasttrennschalter | C33: XTR712E | E33: ABN | F33: 250 | G33: =H33/3 -> 7.666666667 | H33: 23 | I33: 17 | J33: =G33+I33 -> 24.66666667 | K33: Einspeise NH-Trenner Gr.1 Montage auf Sammelschienen 60mm, EBM 70mm
A34: Sicherungslasttrennschalter | C34: LV480856 | D34: NH-LS-Leiste 185mm SaS, 3Pol | E34: ABN | F34: 250 | G34: =H34/3 -> 9 | H34: 27 | I34: 17 | J34: =G34+I34 -> 26 | K34: Sicherungslasttrennschalter ISFL250 3P Anschluss 185 mm Sammelschiene M12
A35: Sicherungslasttrennschalter | C35: XTL912W | E35: ABN | F35: 250 | G35: 9 | H35: 27 | I35: 17 | J35: 26 | K35: NH-Trennerleiste Gr.1 für Wandler EBM 150mm auf SaS 185mm
A36: Sicherungslasttrennschalter | C36: XTR312 | D36: NH-Trenner, MPL, 3Pol | E36: ABN | F36: 250 | G36: =H36/3 -> 7.666666667 | H36: 23 | I36: 17 | J36: =G36+I36 -> 24.66666667 | K36: NH Trenner Gr.1 Universal-Anschluß Montage auf Montage-Traverse
A37: Sicherungslasttrennschalter | B37: Sicherungslasttrennschalter NH 2, einschl. Sicherung | C37: E-XTR522 | D37: NH-Trenner SaS 40mm, 3Pol | E37: ABN | F37: 400 | G37: 23.33333333 | H37: 70 | I37: 29 | J37: 52.33333333 | K37: NH-Sicherungs-Lasttrenner Gr.2 für SAS 40/12mm 3pol., 400A, Universalanschluss M10
A38: Sicherungslasttrennschalter | C38: XTR722 | D38: NH-Trenner SaS 60mm, 3Pol | E38: ABN | F38: 400 | G38: 23 | H38: 69 | I38: 29 | J38: 52 | K38: NH Trenner Gr.2 Universal-Anschluß SaS 60mm EBM 70mm
A39: Sicherungslasttrennschalter | C39: XTR722E | E39: ABN | F39: 400 | G39: =H39/3 -> 23 | H39: 69 | I39: 29 | J39: =G39+I39 -> 52 | K39: Einspeise NH-Trenner Gr.2 Montage auf Sammelschienen 60mm, EBM 70mm
A40: Sicherungslasttrennschalter | C40: EH231CAA | D40: NH-LS-Leiste 185mm SaS, 3Pol | E40: ABN | F40: 400 | G40: 17.33333333 | H40: 52 | I40: 29 | J40: 46.33333333 | K40: NH-Sich-Leiste Gr.2 690V/400A V-D-Klemmen 35-240qmm+Berührschutz
A41: Sicherungslasttrennschalter | C41: EH232CAB | E41: ABN | F41: 400 | G41: =H41/3 -> 17.33333333 | H41: 52 | I41: 29 | J41: =G41+I41 -> 46.33333333 | K41: NH-Sicherungslastschaltleiste Gr.2 V-Doppelklemme 35-240 mm² Anschlussabdeckung 690V/400A
A42: Sicherungslasttrennschalter | C42: EH241AAB | E42: ABN | F42: 400 | G42: 17.33333333 | H42: 52 | I42: 29 | J42: 46.33333333 | K42: NH-SLS-Leiste Gr.2 690V/400A EON Ausführung
A43: Sicherungslasttrennschalter | C43: EH241AAG | E43: ABN | F43: 400 | G43: 17.33333333 | H43: 52 | I43: 29 | J43: 46.33333333 | K43: NH-Sicherungslastschaltleiste Gr.2 M12x35mm Schraubenanschluss 1p schaltbar 690V/400A
A44: Sicherungslasttrennschalter | C44: EH241CAC | E44: ABN | F44: 400 | G44: 17.33333333 | H44: 52 | I44: 29 | J44: 46.33333333 | K44: NH-Sicherungslastschaltleiste Gr.2 V-Klemme 240 mm² se 5-Leiter 1p 690V/400A
A45: Sicherungslasttrennschalter | C45: E-EH241CAC | E45: ABN | F45: 400 | G45: =H45/3 -> 17.33333333 | H45: 52 | I45: 29 | J45: =G45+I45 -> 46.33333333 | K45: NH-SLS-Leiste Gr.2 690V/400A V-D-Klemmen 35-240qmm,1-p.sb.
A46: Sicherungslasttrennschalter | C46: EH241CAL | E46: ABN | F46: 400 | G46: 17.33333333 | H46: 52 | I46: 29 | J46: 46.33333333 | K46: NH2/400A LS-Leiste o.E-Verpack Export,m. V-Klemm/300se, 1-polig schaltbar
A47: Sicherungslasttrennschalter | C47: EH243AAB | E47: ABN | F47: 400 | G47: 17.33333333 | H47: 52 | I47: 29 | J47: 46.33333333 | K47: NH-SLS-Leiste Gr.2 690V/400A Schraubanschluss M12x30mm,3-polig, schaltbar
A48: Sicherungslasttrennschalter | C48: EH243CAA | E48: ABN | F48: 400 | G48: 17.33333333 | H48: 52 | I48: 29 | J48: 46.33333333 | K48: NH-SLS-Leiste Gr.2 690V/400A V-D-Klemmen 50-185,3-polig schaltbar
A49: Sicherungslasttrennschalter | C49: XTL921V | D49: NH-LS-Leiste 185mm SaS, 3Pol | E49: ABN | F49: 400 | G49: 18.66666667 | H49: 56 | I49: 29 | J49: 47.66666667 | K49: NH-Trennerleiste Gr.2 mit V-Anschluß 1p schaltbar für 185mm SaS mit Befestigungsschrauben
A50: Sicherungslasttrennschalter | C50: XTL921W | E50: ABN | F50: 400 | G50: 18.66666667 | H50: 56 | I50: 29 | J50: 47.66666667 | K50: NH-Trennerleiste Gr.2 Universal-Anschluß M12 1p schaltbar für 185mm SaS mit Befestigungsschrauben
A51: Sicherungslasttrennschalter | C51: XTL922V | E51: ABN | F51: 400 | G51: =H51/3 -> 18.66666667 | H51: 56 | I51: 29 | J51: =G51+I51 -> 47.66666667 | K51: NH-Trennerleiste Gr.2 mit V-Anschluss 3p schaltbar für 185mm SaS mit Befestigungsschrauben
A52: Sicherungslasttrennschalter | C52: XTL922W | E52: ABN | F52: 400 | G52: =H52/3 -> 18.66666667 | H52: 56 | I52: 29 | J52: =G52+I52 -> 47.66666667 | K52: NH-Trennerleiste Gr.2 für Wandler EBM 150mm auf SaS 185mm
A53: Sicherungslasttrennschalter | C53: LV480857 | E53: ABN | F53: 400 | G53: =H53/3 -> 18.66666667 | H53: 56 | I53: 29 | J53: =G53+I53 -> 47.66666667 | K53: Sicherungslasttrennschalter ISFL400 3P Anschluss 185 mm Sammelschiene M12
A54: Sicherungslasttrennschalter | C54: LV480902 | E54: ABN | F54: 400 | G54: 18.66666667 | H54: 56 | I54: 29 | J54: 47.66666667 | K54: NH Trenner Leiste Gr.2 1p schaltbar Montiert auf SammelS 185mm (M12)
A55: Sicherungslasttrennschalter | C55: XTR322 | D55: NH-Trenner, MPL, 3Pol | E55: ABN | F55: 400 | G55: =H55/3 -> 15.33333333 | H55: 46 | I55: 29 | J55: =G55+I55 -> 44.33333333 | K55: NH Trenner Gr.2 Universal-Anschluß Montage auf Montage-Traverse
A56: Sicherungslasttrennschalter | C56: LV480806 | E56: ABN | F56: 400 | G56: =H56/3 -> 15.33333333 | H56: 46 | I56: 29 | J56: =G56+I56 -> 44.33333333 | K56: Sicherungslasttrennschalter ISFT400 3P Anschluss M10 Montageplatte
A57: Sicherungslasttrennschalter | B57: Sicherungslasttrennschalter NH 3, einschl. Sicherung | C57: XTR732 | D57: NH-Trenner, SaS 60mm, 3Pol | E57: ABN | F57: 630 | G57: 31 | H57: 93 | I57: 40.2 | J57: 71.2 | K57: NH Trenner Gr.3 Universal-Anschluß SaS 60mm EBM 70mm
A58: Sicherungslasttrennschalter | C58: XTL932K | D58: NH-LS-Koppelleiste 185mm SaS, 3Pol | E58: ABN | F58: 630 | G58: 36.66666667 | H58: 110 | I58: 40.2 | J58: 76.86666667 | K58: NH-LSL NH3 als Koppelleiste 630A für System 185mm ohne Platzverlust (nur Schraubmontage!!)
A59: Sicherungslasttrennschalter | C59: EH341AAB | D59: NH-LS-Leiste 185mm SaS, 3Pol | E59: ABN | F59: 630 | G59: 40 | H59: 120 | I59: 40.2 | J59: 80.2 | K59: NH-Sicherungslastschaltleiste Gr.3 630A M12x35mm Schraubenanschluss 1p schaltbar
A60: Sicherungslasttrennschalter | C60: EH343AAB | E60: ABN | F60: 630 | G60: =H60/3 -> 40 | H60: 120 | I60: 40.2 | J60: =G60+I60 -> 80.2 | K60: NH-Sicherungslastschaltleiste Gr.3 630A M12x30mm Schraubenanschluss 3p schaltbar
A61: Sicherungslasttrennschalter | C61: EH343CAA | E61: ABN | F61: 630 | G61: 40 | H61: 120 | I61: 40.2 | J61: 80.2 | K61: NH-SLS-Leiste Gr.3 630A V-Klemme 300se, 3-polig schaltbar
A62: Sicherungslasttrennschalter | C62: LV480858 | E62: ABN | F62: 630 | G62: 37 | H62: 111 | I62: 40.2 | J62: 77.2 | K62: Sicherungslasttrennschalter ISFL630 3P Anschluss 185 mm Sammelschiene M12
A63: Sicherungslasttrennschalter | C63: XTL932W | E63: ABN | F63: 630 | G63: 37 | H63: 111 | I63: 40.2 | J63: 77.2 | K63: NH-Trennerleiste Gr.3 für Wandler EBM 150mm auf SaS 185mm
A64: Sicherungslasttrennschalter | C64: XTR332 | D64: NH-Trenner, MPL, 3Pol | E64: ABN | F64: 630 | G64: =H64/3 -> 31 | H64: 93 | I64: 40.2 | J64: =G64+I64 -> 71.2 | K64: NH Trenner Gr.3 Universal-Anschluß Montage auf Montage-Traverse
A65: Sicherungslasttrennschalter | B65: Reiter-Sicherungs-Schalter, 10,3x38, einschl. Sicherung | C65: XTNR363 | D65: SaS 60mm, 3 Pol | E65: ABN | F65: 63 | G65: =H65/3 -> 3.5 | H65: 10.5 | I65: 5.5 | J65: =G65+I65 -> 9 | K65: D02-Lasttrennschalter Neozed E18, 63A, 400V, 3-polig Reiter (Wöhner)
A66: Sicherungslasttrennschalter | C66: A9N15656 | D66: auf Hutschiene, 3 Pol | E66: Schneider | F66: 25 | G66: 3 | H66: 9 | I66: 3 | J66: =G66+I66 -> 6 | K66: Acti 9-Sicherungstrennschalter STI, 3-polig, 25A, für Sicherung 10,3x38mm
A67: Sicherungslasttrennschalter | C67: A9N15646 | D67: auf Hutschiene, 1 Pol+N | E67: Schneider | F67: 25 | G67: 1 | I67: 3 | J67: =G67+I67 -> 4 | K67: Acti 9, Sicherungstrennschalter STI, 1-polig+N, 25A, für Sicherung 10,3x38mm
A68: Sicherungslasttrennschalter | C68: A9N15651 | D68: auf Hutschiene, 2 Pol | E68: Schneider | F68: 25 | G68: 1 | I68: 3 | J68: =G68+I68 -> 4 | K68: Acti 9, Sicherungstrennschalter STI, 2-polig, 25A, für Sicherung 10,3x38mm
A69: Sicherungslasttrennschalter | C69: A9N15636 | D69: auf Hutschiene, 1 Pol | E69: Schneider | F69: 25 | G69: 1 | I69: 3 | J69: =G69+I69 -> 4 | K69: SICHERUNGSTRÄGERSTI 1P 1 3 X 38 500V
A70: Sicherungslasttrennschalter | C70: A9N15658 | D70: auf Hutschiene, 3 Pol | E70: Schneider | F70: 25 | G70: 1 | I70: 3 | J70: 4 | K70: SICHERUNGSTRÄGERSTI 3P+N 10,3 X 38 500V
A71: Sicherungslasttrennschalter | C71: DF101 | D71: auf Hutschiene, 1 Pol | E71: Schneider | F71: 25 | G71: 1 | I71: 3 | J71: =G71+I71 -> 4 | K71: Sicherungshalter TeSys 1p 25A Sicherungsgröße 10x38mm
A72: Sicherungslasttrennschalter | C72: DF103 | D72: auf Hutschiene, 3 Pol | E72: Schneider | F72: 32 | G72: 1 | I72: 3 | J72: 4 | K72: Sicherungshalter TeSys 3p 32A Sicherungsgröße 10x38mm
A73: Sicherungslasttrennschalter | B73: Acti 9, Sicherungstrennschalter STI, 1-polig, 10A, für Sicherung 8,5x31,5mm | C73: A9N15635 | D73: auf Hutschiene, 1 Pol | E73: Schneider | F73: 10 | G73: 1 | I73: 2.5 | J73: 3.5 | K73: Acti 9, Sicherungstrennschalter STI, 1-polig, 10A, für Sicherung 8,5x31,5mm
A74: Sicherungslasttrennschalter | B74: Sicherungs-Lasttrennschalter D01, einschl. Sicherung | C74: MGN01610 | D74: auf Hutschiene, 1p+N | E74: Schneider | F74: 10 | G74: 1 | I74: 1.5 | J74: 2.5 | K74: Sicherungs-Lasttrennschalter D01, 1p+N, 10A
A75: Sicherungslasttrennschalter | C75: MGN01710 | D75: auf Hutschiene, 3p+N | E75: Schneider | F75: 10 | G75: 1 | I75: 1.5 | J75: 2.5 | K75: Sicherungs-Lasttrennschalter D01, 3p+N, 10A
A76: Sicherungslasttrennschalter | C76: MGN01613 | D76: auf Hutschiene, 1p+N | E76: Schneider | F76: 13 | G76: 1 | I76: 1.8 | J76: 2.8 | K76: Sicherungs-Lasttrennschalter D01, 1p+N, 13A
A77: Sicherungslasttrennschalter | C77: MGN01713 | D77: auf Hutschiene, 3p+N | E77: Schneider | F77: 13 | G77: 1 | I77: 1.8 | J77: 2.8 | K77: Sicherungs-Lasttrennschalter D01, 3p+N, 13A
A78: Sicherungslasttrennschalter | C78: MGN01616 | D78: auf Hutschiene, 1p+N | E78: Schneider | F78: 16 | G78: 1 | I78: 2.3 | J78: 3.3 | K78: Sicherungs-Lasttrennschalter D01, 1p+N, 16A
A79: Sicherungslasttrennschalter | C79: MGN01316 | D79: auf Hutschiene, 3p | E79: Schneider | F79: 16 | G79: 1 | I79: 2.3 | J79: 3.3 | K79: Sicherungs-Lasttrennschalter D01, 3p, 16A
A80: Sicherungslasttrennschalter | C80: MGN01716 | D80: auf Hutschiene, 3p+N | E80: Schneider | F80: 16 | G80: 1 | I80: 2.3 | J80: =G80+I80 -> 3.3 | K80: Sicherungs-Lasttrennschalter D01, 3p+N, 16A
A81: Sicherungslasttrennschalter | B81: Sicherungs-Lasttrennschalter D02, einschl. Sicherung | C81: MGN02163 | D81: auf Hutschiene, 1p | E81: Schneider | F81: 63 | G81: 1.5 | I81: 5.4 | J81: =G81+I81 -> 6.9 | K81: Sicherungs-Lasttrennschalter D02, 1p, 63A
A82: Sicherungslasttrennschalter | C82: MGN02663 | D82: auf Hutschiene, 1p+N | E82: Schneider | F82: 63 | G82: 1.5 | I82: 5.4 | J82: =G82+I82 -> 6.9 | K82: Sicherungs-Lasttrennschalter D02, 1p+N, 63A
A83: Sicherungslasttrennschalter | C83: MGN02263 | D83: auf Hutschiene, 2p | E83: Schneider | F83: 63 | G83: 1.5 | I83: 5.4 | J83: =G83+I83 -> 6.9 | K83: Sicherungs-Lasttrennschalter D02, 2p, 63A
A84: Sicherungslasttrennschalter | C84: MGN02363 | D84: auf Hutschiene, 3p | E84: Schneider | F84: 63 | G84: 1.5 | I84: 5.4 | J84: =G84+I84 -> 6.9 | K84: Sicherungs-Lasttrennschalter D02, 3p, 63A
A85: Sicherungslasttrennschalter | C85: MGN02763 | D85: auf Hutschiene, 3p+N | E85: Schneider | F85: 63 | G85: 1.5 | I85: 5.4 | J85: =G85+I85 -> 6.9 | K85: Sicherungs-Lasttrennschalter D02, 3p+N, 63A
A87: Sicherungsträger | B87: Sicherungsträger
A88: Sicherungsträger | B88: Schraubsicherungssystem D 01/E14, einschl. Sicherung | C88: R9J01116 | D88: auf Hutschiene, 1 Pol | E88: Schneider | F88: 16 | G88: =H88 -> 4 | H88: 4 | I88: 2.5 | J88: 6.5 | K88: Neozed Sicherungssockel D01, 1P, 16A, 400V, DIN-Schiene
A89: Sicherungsträger | C89: R9J01316 | D89: auf Hutschiene, 3 Pol | E89: Schneider | F89: 16 | G89: 4 | H89: 12 | I89: 2.5 | J89: 6.5 | K89: Neozed Sicherungssockel D01, 3P, 16A, 400V, DIN-Schiene
A90: Sicherungsträger | B90: Schraubsicherungssystem D 02/E18, einschl. Sicherung | C90: R9J02163 | D90: auf Hutschiene, 1 Pol | E90: Schneider | F90: 63 | G90: =H90 -> 7 | H90: 7 | I90: 5.5 | J90: 12.5 | K90: Neozed Sicherungssockel D02, 1P, 63A, 400V, DIN-Schiene
A91: Sicherungsträger | C91: R9J02363 | D91: auf Hutschiene, 3 Pol | E91: Schneider | F91: 63 | G91: 7 | H91: 21 | I91: 5.5 | J91: 12.5 | K91: Neozed Sicherungssockel D02, 3P, 63A, 400V, DIN-Schiene
A92: Sicherungsträger | C92: XNR663BN | D92: SaS 60mm, 3 Pol | E92: ABN | F92: 63 | G92: 1.966666667 | H92: 5.9 | I92: 5.5 | J92: 7.466666667 | K92: D02-Reiterelement 63A mit 36mm Abdeckung 3p SaS 60mm EBM 32mm
A93: Sicherungsträger | C93: XNR663N | E93: ABN | F93: 63 | G93: =H93/3 -> 1.966666667 | H93: 5.9 | I93: 5.5 | J93: =G93+I93 -> 7.466666667 | K93: D02-Reiterelement 63A mit 27mm Abdeckung 3p SaS 60mm EBM 32mm
A94: Sicherungsträger | C94: XNR363 | E94: ABN | F94: 63 | G94: 1.966666667 | H94: 5.9 | I94: 5.5 | J94: 7.466666667 | K94: Neozed-Element 63A 3p auf SaS 10mm CU Reiter-Sicherungselement E18
A95: Sicherungsträger | C95: XNR363-5 | E95: ABN | F95: 63 | G95: 1.966666667 | H95: 5.9 | I95: 5.5 | J95: 7.466666667 | K95: Neozed-Element 63A 3p auf SaS 5mm CU Reiter-Sicherungselement E18
A96: Sicherungsträger | C96: XTNR663N | D96: SaS 60mm, 3 Pol | E96: ABN | F96: 63 | G96: 5 | H96: 15 | I96: 5.5 | J96: 10.5 | K96: D02-Lasttrennschalter 63A 3p SaS 60mm EBM 32/63mm max. 10 mm²
A97: Sicherungsträger | C97: XTNR663BN | D97: SaS 60mm, 3 Pol | E97: ABN | F97: 63 | G97: 5 | H97: 15 | I97: 5.5 | J97: 10.5 | K97: D02-Lasttrennschalter 63A 3p blinkend SaS 60mm EBM 32mm
A98: Sicherungsträger | B98: Schraubsicherungssystem D II/E27, einschl. Sicherung | C98: E-XD126 | D98: Hutschiene | E98: ABN | F98: 25 | G98: 0.7 | I98: 4.5 | J98: 5.2 | K98: Diazed-Element E27 kpl.m.Deck. 1pol., 25A, D2 Schelle/Schelle
A99: Sicherungsträger | C99: E-XDR325-5 | D99: SaS 60mm, 3 Pol | E99: ABN | F99: 25 | G99: 0.4 | H99: 1.2 | I99: 4.5 | J99: 4.9 | K99: Reitersicherungselement 25A 3p DII SAS 60mm f. 5-10mm CU (o.Abd.)
A100: Sicherungsträger | C100: XDR625N | E100: ABN | F100: 25 | G100: =H100/3 -> 0.4 | H100: 1.2 | I100: 4.5 | J100: =G100+I100 -> 4.9 | K100: Reitersicherungselement 25A mit 42mm Abdeckung 3p DII SaS 60mm EBM 32mm
A101: Sicherungsträger | B101: Schraubsicherungssystem D III/E33, einschl. Sicherung | C101: E-XDR363-5 | D101: SaS 60mm, 3 Pol | E101: ABN | F101: 63 | G101: 3.333333333 | H101: 10 | I101: 7 | J101: 10.33333333 | K101: Reitersicherungselement 63A 3p DIII SAS 60mm f. 5-10mm CU (o.Abd.)
A102: Sicherungsträger | C102: XDR663N | E102: ABN | F102: 63 | G102: =H102/3 -> 3.333333333 | H102: 10 | I102: 7 | J102: =G102+I102 -> 10.33333333 | K102: Reitersicherungselement 63A mit 57mm Abdeckung 3p DIII SaS 60mm EBM 32mm
A103: Sicherungsträger | B103: Sicherungsunterteil NH00, einschl. Sicherung | C103: HS434C | D103: Hausanschlusskasten | E103: ABN | F103: 100 | G103: 4 | H103: 12 | I103: 6.6 | J103: =G103+I103 -> 10.6 | K103: Kabel-Hausanschlusskasten KH00 K4 1x3NH00 V-Doppelklemme 10-95 mm² DIN43627
A104: Sicherungsträger | C104: HK334KL-J | E104: ABN | F104: 100 | G104: 4 | H104: 12 | I104: 6.6 | J104: =G104+I104 -> 10.6 | K104: Kabel-Hausanschlusskasten KH00 K3 245X415mm, Klarsicht_JM
A105: Sicherungsträger | C105: HK334KL | E105: ABN | F105: 100 | G105: 4 | H105: 12 | I105: 6.6 | J105: 10.6 | K105: Kabel-Hausanschlusskasten KH00 K3 245x415mm Klarsicht
A106: Sicherungsträger | C106: HK335C-J | E106: ABN | F106: 100 | G106: 4 | H106: 12 | I106: 6.6 | J106: 10.6 | K106: Kabel-Hausanschlusskasten KH00 KU5 NH00 100A, TN-S-Netz, 413x238x132mm
A107: Sicherungsträger | C107: HK334C | E107: ABN | F107: 100 | G107: 4 | H107: 12 | I107: 6.6 | J107: =G107+I107 -> 10.6 | K107: Hausanschlusskasten KH00 K3 1x3NH00 Zugang V-Klemme Abgang 3xStahlrahmenklemme
A108: Sicherungsträger | C108: HK334C-J | E108: ABN | F108: 100 | G108: 4 | H108: 12 | I108: 6.6 | J108: =G108+I108 -> 10.6 | K108: KH00 DIN43627 K3 1x3NH00 Zugang V-Klemme, Abgang 3x Stahlrahmenklemme_JM
A109: Sicherungsträger | C109: HK335C-U | E109: ABN | F109: 100 | G109: 4 | H109: 12 | I109: 6.6 | J109: 10.6 | K109: Kabel-Hausanschlusskasten 5-pol.,1x3xNH00 bis 100A 10-95mm², 397x244x113mm
A110: Sicherungsträger | C110: HK864C | D110: Hausanschlusskasten Doppel. MPL, 3Pol | E110: ABN | F110: 100 | G110: 4 | H110: 24 | I110: 6.6 | J110: =G110+I110 -> 10.6 | K110: Kabel-Hausanschlusskasten K12 2x3xNH00 2x50-185 mm² 2x100A
A111: Sicherungsträger | C111: HK864C-J | E111: ABN | F111: 100 | G111: 4 | H111: 24 | I111: 6.6 | J111: =G111+I111 -> 10.6 | K111: Kabel-Hausanschlusskasten K12 2x3xNH00, 2x50-185qmm, 2x100A_JM
A112: Sicherungsträger | C112: 102000 | D112: NH-Unterteil, 40mm SaS, 3Pol | E112: ABN | F112: 160 | G112: 6.333333333 | H112: 19 | I112: 11.2 | J112: 17.53333333 | K112: NH00-Sicherungsunterteil 3pol. für 40mm SaS Montage, Univ. Anschl. M8, EBM70mm
A113: Sicherungsträger | C113: ABNPE508F01 | E113: ABN | F113: 160 | G113: =H113/3 -> 6.333333333 | H113: 19 | I113: 11.2 | J113: =G113+I113 -> 17.53333333 | K113: NH00-Sicherungsunterteil 3pol auf 40mm SAS mit Uni-Anschl. M8
A114: Sicherungsträger | C114: XUS3-00 | E114: ABN | F114: 160 | G114: 4.7 | H114: =3*G114 -> 14.1 | I114: 11.2 | J114: 15.9 | K114: NH-Unterteil Gr.00 3-polig Montage auf Sammelschienen
A115: Sicherungsträger | C115: XUS1-00 | E115: ABN | F115: 160 | G115: =H115/3 -> 4.7 | H115: 14.1 | I115: 11.2 | J115: =G115+I115 -> 15.9 | K115: NH-Unterteil Gr.00 1p SaS Montage
A116: Sicherungsträger | C116: XUS6-00 | D116: NH-Unterteil Doppel, 40mm SaS, 3Pol | E116: ABN | F116: 160 | G116: 3.6 | H116: 10.8 | I116: 11.2 | J116: 14.8 | K116: NH-Unterteil Gr.00 2x3p SaS Montage
A117: Sicherungsträger | C117: XUM1-00 | D117: NH-Unterteil, MPL, 3Pol | E117: ABN | F117: 160 | G117: =H117/3 -> 4.2 | H117: 12.6 | I117: 11.2 | J117: =G117+I117 -> 15.4 | K117: NH-Unterteil Gr.00 1p Montageplatte
A118: Sicherungsträger | B118: Sicherungsunterteil NH 1, einschl. Sicherung | C118: HS837C | D118: Hausanschlusskasten. MPL, 3Pol | E118: ABN | F118: 250 | G118: 5 | I118: 17 | J118: 22 | K118: Kabel-Hausanschlusskasten K12 Transparent 1x3xNH2/1 2x50-185 mm² 250A
A119: Sicherungsträger | C119: 100499 | E119: ABN | F119: 250 | G119: 5 | I119: 17 | J119: 22 | K119: Kabelanschlusskasten KH1 K12 3xNH2 EFEN 93412-0003-SNH
A120: Sicherungsträger | C120: HK837C | E120: ABN | F120: 250 | G120: 5 | I120: 17 | J120: 22 | K120: Kabel-Hausanschlusskasten K12 1x3xNH2/1
A121: Sicherungsträger | C121: E-XUS3-1 | D121: NH-Unterteil auf 40mm SaS, 3Pol | E121: ABN | F121: 250 | G121: =H121/3 -> 7.333333333 | H121: 22 | I121: 17 | J121: =G121+I121 -> 24.33333333 | K121: NH-Reiter-Sicherungsunterteil Gr.1, 3pol. 40mm SS 3pol., 250A, M10
A122: Sicherungsträger | C122: XUS3-1-60 | D122: NH-Unterteil auf 60mm SaS, 3Pol | E122: ABN | F122: 250 | G122: 10.47 | H122: 31.4 | I122: 17 | J122: 27.47 | K122: NH-Unterteil Gr.1 3p SaS 60mm Montage
A123: Sicherungsträger | C123: XUM3-1 | D123: NH-Unterteil MPL, 3Pol | E123: ABN | F123: 250 | G123: 4.333333333 | H123: 13 | I123: 17 | J123: 21.33333333 | K123: NH-Unterteil Gr.1 250A 3p Montageplatte M10
A124: Sicherungsträger | B124: Sicherungsunterteil NH 2, einschl. Sicherung | C124: E-XUS3-2 | D124: NH-Unterteil auf 40mm SaS, 3Pol | E124: ABN | F124: 400 | G124: =H124/3 -> 18.66666667 | H124: 56 | I124: 29 | J124: =G124+I124 -> 47.66666667 | K124: NH-Reiter-Sicherungsunterteil Gr.2, 3pol. 40mm SS 3pol., 400A, M10
A125: Sicherungsträger | C125: ABNPE520F01 | E125: ABN | F125: 400 | G125: =H125/3 -> 18.66666667 | H125: 56 | I125: 29 | J125: =G125+I125 -> 47.66666667 | K125: NH2-Sicherungsunterteil 3pol auf 40mm SAS mit Uni-Anschl. M10
A126: Sicherungsträger | C126: XUS3-2-60 | D126: NH-Unterteil auf 60mm SaS, 3Pol | E126: ABN | F126: 400 | G126: =H126/3 -> 18.66666667 | H126: 56 | I126: 29 | J126: =G126+I126 -> 47.66666667 | K126: NH-Unterteil Gr.2 3p SaS 60mm Montage
A127: Sicherungsträger | C127: E-XUM320JM | D127: NH-Unterteil MPL, 3Pol | E127: ABN | F127: 400 | G127: =H127/3 -> 7 | H127: 21 | I127: 29 | J127: =G127+I127 -> 36 | K127: NH-Unterteil Gr.2 1-polig U2-1IGZ/H mit Kontaktabd Jean Müller Art. Nr.: U2311301
A128: Sicherungsträger | C128: ABNPE320F01 | E128: ABN | F128: 400 | G128: 7 | H128: 21 | I128: 29 | J128: 36 | K128: NH2-Sicherungsunterteil 3pol mit Trennschottung Uni-Anschl. M10
A129: Sicherungsträger | C129: XUM3-2 | E129: ABN | F129: 400 | G129: 7 | H129: 21 | I129: 29 | J129: 36 | K129: NH-Unterteil Gr.2 3p Montageplatte M10 mit Nullleiterklemme
J130: 0
A131: Lasttrenschalter INS/INV | B131: Lasttrenschalter INS/INV | J131: 0
A132: Lasttrenschalter INS/INV | B132: Lasttrennschalter (40 A) | C132: Compact INS, 3 Pol | E132: Schneider | F132: 40 | G132: 0.5 | H132: =G132*3 -> 1.5 | J132: 0.5 | K132: Compact INS, 3 Pol 40 A
A133: Lasttrenschalter INS/INV | B133: Lasttrennschalter (63 A) | C133: Compact INS, 3 Pol | E133: Schneider | F133: 63 | G133: 1.2 | H133: =G133*3 -> 3.6 | J133: 1.2 | K133: Compact INS, 3 Pol 63 A
A134: Lasttrenschalter INS/INV | B134: Lasttrennschalter (100 A) | C134: Compact INS, 3 Pol | E134: Schneider | F134: 100 | G134: 1.9 | H134: 5.7 | J134: 1.9 | K134: Compact INS, 3 Pol 100 A
A135: Lasttrenschalter INS/INV | C135: Compact INV, 3 Pol | E135: Schneider | F135: 100 | G135: 1.5 | H135: 4.5 | J135: 1.5 | K135: Compact INV, 3 Pol 100 A
A136: Lasttrenschalter INS/INV | B136: Lasttrennschalter (125 A) | C136: Compact INS, 3 Pol | E136: Schneider | F136: 125 | G136: 3.1 | H136: 9.3 | J136: 3.1 | K136: Compact INS, 3 Pol 125 A
A137: Lasttrenschalter INS/INV | B137: Lasttrennschalter (160 A) | C137: Compact INS, 3 Pol | E137: Schneider | F137: 160 | G137: 5.1 | H137: 15.3 | J137: 5.1 | K137: Compact INS, 3 Pol 160 A
A138: Lasttrenschalter INS/INV | C138: Compact INV, 3 Pol | E138: Schneider | F138: 160 | G138: 4 | H138: 12 | J138: 4 | K138: Compact INV, 3 Pol 160 A
A139: Lasttrenschalter INS/INV | B139: Lasttrennschalter (250 A) | C139: Compact INS/INV, 3 Pol | E139: Schneider | F139: 250 | G139: 9.5 | H139: 28.5 | J139: 9.5 | K139: Compact INS/INV, 3 Pol 250 A
A140: Lasttrenschalter INS/INV | B140: Lasttrennschalter (400 A) | C140: Compact INS/INV, 3 Pol | E140: Schneider | F140: 400 | G140: 9.6 | H140: 28.8 | J140: 9.6 | K140: Compact INS/INV, 3 Pol 400 A
A141: Lasttrenschalter INS/INV | B141: Lasttrennschalter (630 A) | C141: Compact INS/INV, 3 Pol | E141: Schneider | F141: 630 | G141: 24 | H141: 72 | J141: 24 | K141: Compact INS/INV, 3 Pol 630 A
A142: Lasttrenschalter INS/INV | B142: Lasttrennschalter (800 A) | C142: Compact INS/INV, 3 Pol | E142: Schneider | F142: 800 | G142: 16 | H142: 48 | J142: 16 | K142: Compact INS/INV, 3 Pol 800 A
A143: Lasttrenschalter INS/INV | B143: Lasttrennschalter (1000 A) | C143: Compact INS/INV, 3 Pol | E143: Schneider | F143: 1000 | G143: 24 | H143: 72 | J143: 24 | K143: Compact INS/INV, 3 Pol 1000 A
A144: Lasttrenschalter INS/INV | B144: Lasttrennschalter (1250 A) | C144: Compact INS/INV, 3 Pol | E144: Schneider | F144: 1250 | G144: 38 | H144: 114 | J144: 38 | K144: Compact INS/INV, 3 Pol 1250 A
A145: Lasttrenschalter INS/INV | B145: Lasttrennschalter (1600 A) | C145: Compact INS/INV, 3 Pol | E145: Schneider | F145: 1600 | G145: 62 | H145: 186 | J145: 62 | K145: Compact INS/INV, 3 Pol 1600 A
A146: Lasttrenschalter INS/INV | B146: Lasttrennsch. INS63,3P, 63A/690V AC/250V DC ,Drehantrieb schwarz | C146: 28902 | E146: Schneider | F146: 63 | G146: 1.2 | J146: =G146+I146 -> 1.2 | K146: Lasttrennsch. INS63,3P, 63A/690V AC/250V DC ,Drehantrieb schwarz
A147: Lasttrenschalter INS/INV | B147: Lasttrennsch. INS100,3P, 100A/690V AC/250V DC,Drehantrieb schwarz | C147: 28908 | E147: Schneider | F147: 100 | G147: 1.9 | J147: 1.9 | K147: Lasttrennsch. INS100,3P, 100A/690V AC/250V DC,Drehantrieb schwarz
A148: Lasttrenschalter INS/INV | B148: Lasttrennsch. INS100,4P, 100A/690V AC/250V DC,Drehantrieb schwarz | C148: 28909 | E148: Schneider | F148: 100 | G148: 1.9 | J148: 1.9 | K148: Lasttrennsch. INS100,4P, 100A/690V AC/250V DC,Drehantrieb schwarz
A149: Lasttrenschalter INS/INV | B149: Lasttrennschalter 125A 3-polig montage auf Hutschiene mit Griff | C149: 28910 | E149: Schneider | F149: 125 | G149: 3.1 | J149: 3.1 | K149: Lasttrennschalter 125A 3-polig montage auf Hutschiene mit Griff
A150: Lasttrenschalter INS/INV | B150: Lasttrennsch. INS125,4P, 125A/690V AC/250V DC,Drehantrieb schwarz | C150: 28911 | E150: Schneider | F150: 125 | G150: 3.1 | J150: 3.1 | K150: Lasttrennsch. INS125,4P, 125A/690V AC/250V DC,Drehantrieb schwarz
A151: Lasttrenschalter INS/INV | B151: Lasttrennsch. INS160,3P, 160A/690V AC/250V DC,Drehantrieb schwarz | C151: 28912 | E151: Schneider | F151: 160 | G151: 5.1 | J151: 5.1 | K151: Lasttrennsch. INS160,3P, 160A/690V AC/250V DC,Drehantrieb schwarz
A152: Lasttrenschalter INS/INV | B152: Lasttrennsch. INS160,4P, 160A/690V AC/250V DC,Drehantrieb schwarz | C152: 28913 | E152: Schneider | F152: 160 | G152: 5.1 | J152: 5.1 | K152: Lasttrennsch. INS160,4P, 160A/690V AC/250V DC,Drehantrieb schwarz
A153: Lasttrenschalter INS/INV | B153: Lasttrennsch. INS250,3P, 160A/690V AC/250V DC,Drehantrieb schwarz | C153: 31104 | E153: Schneider | F153: 250 | G153: 9.5 | J153: 9.5 | K153: Lasttrennsch. INS250,3P, 160A/690V AC/250V DC,Drehantrieb schwarz
A154: Lasttrenschalter INS/INV | B154: Lasttrennsch. INS250,4P, 160A/690V AC/250V DC,Drehantrieb schwarz | C154: 31105 | E154: Schneider | F154: 250 | G154: 9.5 | J154: 9.5 | K154: Lasttrennsch. INS250,4P, 160A/690V AC/250V DC,Drehantrieb schwarz
A155: Lasttrenschalter INS/INV | B155: Lasttrennschalter 250A 3-polig montage auf Traverse mit Griff | C155: 31106 | E155: Schneider | F155: 250 | G155: 9.5 | J155: 9.5 | K155: Lasttrennschalter 250A 3-polig montage auf Traverse mit Griff
A156: Lasttrenschalter INS/INV | B156: Lasttrennsch. INS250,4P, 250A/690V AC/250V DC,Drehantrieb schwarz | C156: 31107 | E156: Schneider | F156: 250 | G156: 9.5 | J156: 9.5 | K156: Lasttrennsch. INS250,4P, 250A/690V AC/250V DC,Drehantrieb schwarz
A157: Lasttrenschalter INS/INV | B157: Lasttrennsch. INS400,3P, 400A/690V AC/250V DC,Drehantrieb schwarz | C157: 31110 | E157: Schneider | F157: 400 | G157: 9.6 | J157: 9.6 | K157: Lasttrennsch. INS400,3P, 400A/690V AC/250V DC,Drehantrieb schwarz
A158: Lasttrenschalter INS/INV | B158: Lasttrennsch. INS400,4P, 400A/690V AC/250V DC,Drehantrieb schwarz | C158: 31111 | E158: Schneider | F158: 400 | G158: 9.6 | J158: 9.6 | K158: Lasttrennsch. INS400,4P, 400A/690V AC/250V DC,Drehantrieb schwarz
A159: Lasttrenschalter INS/INV | B159: Lasttrennsch. INS630,3P, 630A/690V AC/250V DC,Drehantrieb schwarz | C159: 31114 | E159: Schneider | F159: 630 | G159: 24 | J159: 24 | K159: Lasttrennsch. INS630,3P, 630A/690V AC/250V DC,Drehantrieb schwarz
A160: Lasttrenschalter INS/INV | B160: Lasttrennsch. INS630,4P, 630A/690V AC/250V DC,Drehantrieb schwarz | C160: 31115 | E160: Schneider | F160: 630 | G160: 24 | J160: 24 | K160: Lasttrennsch. INS630,4P, 630A/690V AC/250V DC,Drehantrieb schwarz
A161: Lasttrenschalter INS/INV | B161: Manueller Netzumschalter mit ComPact INS250 4P 160A Festeinbau | C161: 31145 | E161: Schneider | F161: 250 | G161: 9.5 | J161: =G161+I161 -> 9.5 | K161: Manueller Netzumschalter mit ComPact INS250 4P 160A Festeinbau
A162: Lasttrenschalter INS/INV | B162: Manueller Netzumschalter, Interpact INS250 4P, 250A Festeinbau | C162: 31147 | E162: Schneider | F162: 250 | G162: 9.5 | J162: 9.5 | K162: Manueller Netzumschalter, Interpact INS250 4P, 250A Festeinbau
A163: Lasttrenschalter INS/INV | B163: Manueller Netzumschalter mitComPact INS400 4P 400AFesteinbau | C163: 31151 | E163: Schneider | F163: 400 | G163: 9.6 | J163: 9.6 | K163: Manueller Netzumschalter mitComPact INS400 4P 400AFesteinbau
A164: Lasttrenschalter INS/INV | B164: Manueller Netzumschalter, Interpact INS630, 4P, 630A Festeinbau | C164: 31155 | E164: Schneider | F164: 630 | G164: 24 | J164: 24 | K164: Manueller Netzumschalter, Interpact INS630, 4P, 630A Festeinbau
A165: Lasttrenschalter INS/INV | B165: Gussgekapselter Trennschalter Interpact INS1000, 3p, 1000A | C165: 31332 | E165: Schneider | F165: 1000 | G165: 24 | J165: 24 | K165: Gussgekapselter Trennschalter Interpact INS1000, 3p, 1000A
A166: Lasttrenschalter INS/INV | B166: Trennschalter Interpact INS1250, 3p, 1250A | C166: 31334 | E166: Schneider | F166: 1250 | G166: 38 | J166: 38 | K166: Trennschalter Interpact INS1250, 3p, 1250A
J167: 0
A168: Lasttrenschalter/Leistungstrenner Compact NSX/NS | B168: Lasttrenschalter/Leistungstrenner Compact NSX/NS
A169: Lasttrenschalter/Leistungstrenner Compact NSX/NS | B169: Lasttrennschalter 160A 3-polig Motorantrieb 230VAC + Untersp.sp. 24VDC + 1 Hiko | C169: PE302S41 | E169: Schneider | F169: 160 | G169: 8.55 | J169: =G169+I169 -> 8.55 | K169: Lasttrennschalter 160A 3-polig Motorantrieb 230VAC + Untersp.sp. 24VDC + 1 Hiko
A170: Lasttrenschalter/Leistungstrenner Compact NSX/NS | B170: Lasttrennschalter 250A 3-polig Motorantrieb 230VAC + Untersp.sp. 24VDC + 1 Hiko | C170: PE303S41 | E170: Schneider | F170: 250 | G170: 14.52 | J170: 14.52 | K170: Lasttrennschalter 250A 3-polig Motorantrieb 230VAC + Untersp.sp. 24VDC + 1 Hiko
A171: Lasttrenschalter/Leistungstrenner Compact NSX/NS | B171: Lasttrennschalter 400A 3-polig Motorantrieb 230VAC + Untersp.sp. 24VDC + 1 Hiko | C171: PE304S41 | E171: Schneider | F171: 400 | G171: 12.29 | J171: 12.29 | K171: Lasttrennschalter 400A 3-polig Motorantrieb 230VAC + Untersp.sp. 24VDC + 1 Hiko
A172: Lasttrenschalter/Leistungstrenner Compact NSX/NS | B172: Lasttrennschalter 1250A 3-polig Motorantrieb 230VAC + Untersp.sp. 24VDC + 1 Hiko | C172: PE308S41 | E172: Schneider | F172: 1250 | G172: 14.67 | J172: 14.67 | K172: Lasttrennschalter 1250A 3-polig Motorantrieb 230VAC + Untersp.sp. 24VDC + 1 Hiko
A173: Lasttrenschalter/Leistungstrenner Compact NSX/NS | B173: Lasttrennschalter 160A 4-polig Motorantrieb 230VAC + Untersp.sp. 24VDC + 1 Hiko | C173: PE402S41 | E173: Schneider | F173: 160 | G173: 8.55 | J173: 8.55 | K173: Lasttrennschalter 160A 4-polig Motorantrieb 230VAC + Untersp.sp. 24VDC + 1 Hiko
A174: Lasttrenschalter/Leistungstrenner Compact NSX/NS | B174: Lasttrennschalter 630A 4-polig Motorantrieb 230VAC + Untersp.sp. 24VDC + 1 Hiko | C174: PE405S41 | E174: Schneider | F174: 630 | G174: 25 | J174: 25 | K174: Lasttrennschalter 630A 4-polig Motorantrieb 230VAC + Untersp.sp. 24VDC + 1 Hiko
A175: Lasttrenschalter/Leistungstrenner Compact NSX/NS | B175: Lasttrennschalter 250A 4-polig Motorantrieb 230VAC + Untersp.sp. 24VDC + 1 Hiko | C175: PE403S41 | E175: Schneider | F175: 250 | G175: 14.52 | J175: 14.52 | K175: Lasttrennschalter 250A 4-polig Motorantrieb 230VAC + Untersp.sp. 24VDC + 1 Hiko
A176: Lasttrenschalter/Leistungstrenner Compact NSX/NS | B176: Lasttrennschalter 1250A 4-polig Motorantrieb 230VAC + Untersp.sp. 24VDC + 1 Hiko | C176: PE408S41 | E176: Schneider | F176: 1250 | G176: 14.67 | J176: 14.67 | K176: Lasttrennschalter 1250A 4-polig Motorantrieb 230VAC + Untersp.sp. 24VDC + 1 Hiko
A177: Lasttrenschalter/Leistungstrenner Compact NSX/NS | B177: Lasttrennschalter 400A 4-polig Motorantrieb 230VAC + Untersp.sp. 24VDC + 1 Hiko | C177: PE404S41 | E177: Schneider | F177: 400 | G177: 12.29 | J177: 12.29 | K177: Lasttrennschalter 400A 4-polig Motorantrieb 230VAC + Untersp.sp. 24VDC + 1 Hiko
A178: Lasttrenschalter/Leistungstrenner Compact NSX/NS | B178: Lasttrennschalter 1000A 4-polig Motorantrieb 230VAC + Untersp.sp. 24VDC + 1 Hiko | C178: PE407S41 | E178: Schneider | F178: 1000 | G178: 7.3 | J178: 7.3 | K178: Lasttrennschalter 1000A 4-polig Motorantrieb 230VAC + Untersp.sp. 24VDC + 1 Hiko
A179: Lasttrenschalter/Leistungstrenner Compact NSX/NS | B179: Lasttrennschalter 1600A 4-polig Motorantrieb 230VAC + Untersp.sp. 24VDC + 1 Hiko | C179: PE409S41 | E179: Schneider | F179: 1600 | G179: 24.67 | J179: 24.67 | K179: Lasttrennschalter 1600A 4-polig Motorantrieb 230VAC + Untersp.sp. 24VDC + 1 Hiko
A180: Lasttrenschalter/Leistungstrenner Compact NSX/NS | B180: Lasttrennschalter 160A 3-polig Montiert auf Traverse mit Griff | C180: XLTS30160 | E180: Schneider | F180: 250 | G180: 9.5 | J180: 9.5 | K180: Lasttrennschalter 160A 3-polig Montiert auf Traverse mit Griff
A181: Lasttrenschalter/Leistungstrenner Compact NSX/NS | B181: Lasttrennschalter 630A 3-polig Motorantrieb 230VAC + Untersp.sp. 24VDC + 1 Hiko | C181: PE305S41 | E181: Schneider | F181: 630 | G181: 25 | J181: 25 | K181: Lasttrennschalter 630A 3-polig Motorantrieb 230VAC + Untersp.sp. 24VDC + 1 Hiko
A182: Lasttrenschalter/Leistungstrenner Compact NSX/NS | B182: Lasttrennschalter 800A 3-polig manuelle Betätigung | C182: PE306S40 | E182: Schneider | F182: 800 | G182: 5 | J182: 5 | K182: Lasttrennschalter 800A 3-polig manuelle Betätigung
A183: Lasttrenschalter/Leistungstrenner Compact NSX/NS | B183: Lasttrennschalter 800A 3-polig Motorantrieb 230VAC + Untersp.sp. 24VDC + 1 Hiko | C183: PE306S41 | E183: Schneider | F183: 800 | G183: 5 | J183: 5 | K183: Lasttrennschalter 800A 3-polig Motorantrieb 230VAC + Untersp.sp. 24VDC + 1 Hiko
A184: Lasttrenschalter/Leistungstrenner Compact NSX/NS | B184: Lasttrennschalter 1000A 3-polig manuelle Betätigung | C184: PE307S40 | E184: Schneider | F184: 1000 | G184: 7.33 | J184: 7.33 | K184: Lasttrennschalter 1000A 3-polig manuelle Betätigung
A185: Lasttrenschalter/Leistungstrenner Compact NSX/NS | B185: Lasttrennschalter 1000A 3-polig Motorantrieb 230VAC + Untersp.sp. 24VDC + 1 Hiko | C185: PE307S41 | E185: Schneider | F185: 1000 | G185: 7.33 | J185: 7.33 | K185: Lasttrennschalter 1000A 3-polig Motorantrieb 230VAC + Untersp.sp. 24VDC + 1 Hiko
A186: Lasttrenschalter/Leistungstrenner Compact NSX/NS | B186: Lasttrennschalter 1250A 3-polig manuelle Betätigung | C186: PE308S40 | E186: Schneider | F186: 1250 | G186: 14.67 | J186: 14.67 | K186: Lasttrennschalter 1250A 3-polig manuelle Betätigung
A187: Lasttrenschalter/Leistungstrenner Compact NSX/NS | B187: Lasttrennschalter 1600A 3-polig manuelle Betätigung | C187: PE309S40 | E187: Schneider | F187: 1600 | G187: 24.67 | J187: 24.67 | K187: Lasttrennschalter 1600A 3-polig manuelle Betätigung
A188: Lasttrenschalter/Leistungstrenner Compact NSX/NS | B188: Lasttrennschalter 1600A 3-polig Motorantrieb 230VAC + Untersp.sp. 24VDC + 1 Hiko | C188: PE309S41 | E188: Schneider | F188: 1600 | G188: 24.67 | J188: 24.67 | K188: Lasttrennschalter 1600A 3-polig Motorantrieb 230VAC + Untersp.sp. 24VDC + 1 Hiko
A189: Lasttrenschalter/Leistungstrenner Compact NSX/NS | B189: Lasttrennschalter 1000A 4-polig manuelle Betätigung | C189: PE407S40 | E189: Schneider | F189: 1000 | G189: 7.33 | J189: 7.33 | K189: Lasttrennschalter 1000A 4-polig manuelle Betätigung
A190: Lasttrenschalter/Leistungstrenner Compact NSX/NS | B190: Lasttrennschalter 1250A 4-polig manuelle Betätigung | C190: PE408S40 | E190: Schneider | F190: 1250 | G190: 14.67 | J190: 14.67 | K190: Lasttrennschalter 1250A 4-polig manuelle Betätigung
A191: Lasttrenschalter/Leistungstrenner Compact NSX/NS | B191: Lasttrennschalter 1600A 4-polig manuelle Betätigung | C191: PE409S40 | E191: Schneider | F191: 1600 | G191: 24.67 | J191: 24.67 | K191: Lasttrennschalter 1600A 4-polig manuelle Betätigung
A192: Lasttrenschalter/Leistungstrenner Compact NSX/NS | B192: Lasttrennschalter ComPacT NS630b NA 3P, 630 A / 690 V AC, Kipphebel | C192: C063S3FM | E192: Schneider | F192: 630 | G192: 3.33 | J192: 3.33 | K192: Lasttrennschalter ComPacT NS630b NA 3P, 630 A / 690 V AC, Kipphebel
A193: Lasttrenschalter/Leistungstrenner Compact NSX/NS | B193: Lasttrennschalter ComPacT NS630b NA 4P, 630 A / 690 V AC, Kipphebel | C193: C063S4FM | E193: Schneider | F193: 630 | G193: 3.33 | J193: 3.33 | K193: Lasttrennschalter ComPacT NS630b NA 4P, 630 A / 690 V AC, Kipphebel
A194: Lasttrenschalter/Leistungstrenner Compact NSX/NS | B194: Lasttrennschalter 800A 4-polig Motorantrieb 230VAC + Untersp.sp. 24VDC + 1 Hiko | C194: PE406S41 | E194: Schneider | F194: 800 | G194: 5 | J194: 5 | K194: Lasttrennschalter 800A 4-polig Motorantrieb 230VAC + Untersp.sp. 24VDC + 1 Hiko
A195: Lasttrenschalter/Leistungstrenner Compact NSX/NS | B195: ComPacT SWITCH NSX630NA AC 4P4D 630A | C195: C634630S | E195: Schneider | F195: 630 | G195: 25 | J195: 25 | K195: ComPacT SWITCH NSX630NA AC 4P4D 630A
A196: Lasttrenschalter/Leistungstrenner Compact NSX/NS | B196: ComPacT SWITCH NSX160NA AC 4P 160A | C196: C164160S | E196: Schneider | F196: 160 | G196: 8.55 | J196: 8.55 | K196: ComPacT SWITCH NSX160NA AC 4P 160A
A197: Lasttrenschalter/Leistungstrenner Compact NSX/NS | B197: ComPacT SWITCH NSX250NA AC 3P 250A | C197: C253250S | E197: Schneider | F197: 250 | G197: 14.52 | J197: 14.52 | K197: ComPacT SWITCH NSX250NA AC 3P 250A
A198: Lasttrenschalter/Leistungstrenner Compact NSX/NS | B198: ComPacT SWITCH NSX250NA AC 4P 250A | C198: C254250S | E198: Schneider | F198: 250 | G198: 14.52 | J198: 14.52 | K198: ComPacT SWITCH NSX250NA AC 4P 250A
A199: Lasttrenschalter/Leistungstrenner Compact NSX/NS | B199: ComPacT SWITCH NSX630NA AC 3P3D 630A | C199: C633630S | E199: Schneider | F199: 630 | G199: 25 | J199: 25 | K199: ComPacT SWITCH NSX630NA AC 3P3D 630A
A200: Lasttrenschalter/Leistungstrenner Compact NSX/NS | B200: ComPacT SWITCH NSX160NA AC 3P 160A | C200: C163160S | E200: Schneider | F200: 160 | G200: 8.55 | J200: 8.55 | K200: ComPacT SWITCH NSX160NA AC 3P 160A
A201: Lasttrenschalter/Leistungstrenner Compact NSX/NS | B201: ComPacT SWITCH NSX400NA AC 3P3D 400A | C201: C403400S | E201: Schneider | F201: 400 | G201: 12.29 | J201: 12.29 | K201: ComPacT SWITCH NSX400NA AC 3P3D 400A
A202: Lasttrenschalter/Leistungstrenner Compact NSX/NS | B202: ComPacT SWITCH NSX400NA AC 4P4D 400A | C202: C404400S | E202: Schneider | F202: 400 | G202: 12.29 | J202: 12.29 | K202: ComPacT SWITCH NSX400NA AC 4P4D 400A
... 2071 more rows

Sheet Tabelle 4 - Pv_Sammelschiene
A1: Geräteart | B1: Hersteller | C1: Typ / Bestellnummer | D1: Bemerkung | E1: Bemessungsstrom CU-Schiene In [A] | F1: Nennstrom CU-Schiene, InC [A] | G1: Verlustleistung der CU-Schiene pro Pol bei Nennstrom [W] | H1: max. Strom CU-Schiene, Imax [A] (Schienentemperatur 90°C) | I1: Verlustleistung der CU-Schiene pro Pol bei max. Strom [W]
A2: Sammelschiene je 1m | B2: ABN | C2: 12x5 | D2: Beim Lüfttemperatur 55°C | E2: 125 | F2: 100 | G2: 3.576830732 | H2: 215 | I2: 17.9 | L2: 12x5 | M2: 100 | N2: 128 | O2: 200
A3: Sammelschiene je 1m | B3: ABN | C3: 12x5 | D3: Beim Lüfttemperatur 55°C | E3: 160 | F3: 128 | G3: 9.280845138
A4: Sammelschiene je 1m | B4: ABN | C4: 12x5 | D4: Beim Lüfttemperatur 55°C | E4: 250 | F4: 200 | G4: 24.02235894
A6: Sammelschiene je 1m | B6: ABN | C6: 20x5 | D6: Beim Lüfttemperatur 55°C | E6: 160 | F6: 128 | G6: 5.533319879 | H6: 288 | I6: 19.5 | L6: 20x5 | M6: 128 | N6: 200 | O6: 288 | P6: 288
A7: Sammelschiene je 1m | B7: ABN | C7: 20x5 | D7: Beim Lüfttemperatur 55°C | E7: 250 | F7: 200 | G7: 14.01452357
A8: Sammelschiene je 1m | B8: ABN | C8: 20x5 | D8: Beim Lüfttemperatur 55°C | E8: 400 | F8: 288* | G8: 37.64163183
A10: Sammelschiene je 1m | B10: ABN | C10: 12x10 | D10: Beim Lüfttemperatur 55°C | E10: 160 | F10: 128 | G10: 4.576653061 | H10: 345 | I10: 23.3 | L10: 12x10 | M10: 128 | N10: 200 | O10: 320
A11: Sammelschiene je 1m | B11: ABN | C11: 12x10 | D11: Beim Lüfttemperatur 55°C | E11: 250 | F11: 200 | G11: 11.40306122
A12: Sammelschiene je 1m | B12: ABN | C12: 12x10 | D12: Beim Lüfttemperatur 55°C | E12: 400 | F12: 320 | G12: 31.05306122
A14: Sammelschiene je 1m | B14: ABN | C14: 30x5 | D14: Beim Lüfttemperatur 55°C | E14: 125 | F14: 100 | G14: 2.214240772 | H14: 399 | I14: 25.2 | L14: 30x5 | M14: 100 | N14: 128 | O14: 200 | P14: 320 | Q14: 400
A15: Sammelschiene je 1m | B15: ABN | C15: 30x5 | D15: Beim Lüfttemperatur 55°C | E15: 160 | F15: 128 | G15: 3.627812081
A16: Sammelschiene je 1m | B16: ABN | C16: 30x5 | D16: Beim Lüfttemperatur 55°C | E16: 250 | F16: 200 | G16: 9.103847076
A17: Sammelschiene je 1m | B17: ABN | C17: 30x5 | D17: Beim Lüfttemperatur 55°C | E17: 400 | F17: 320 | G17: 24.41188878
A18: Sammelschiene je 1m | B18: ABN | C18: 30x5 | D18: Beim Lüfttemperatur 55°C | E18: 500 | F18: 400 | G18: 39.50143816
A20: Sammelschiene je 1m | B20: ABN | C20: 20x10 | D20: Beim Lüfttemperatur 55°C | E20: 250 | F20: 200 | G20: 6.770235104 | H20: 450 | I20: 24 | L20: 20x10 | M20: 200 | N20: 320 | O20: 400
A21: Sammelschiene je 1m | B21: ABN | C21: 20x10 | D21: Beim Lüfttemperatur 55°C | E21: 400 | F21: 320 | G21: 17.98248385
A22: Sammelschiene je 1m | B22: ABN | C22: 20x10 | D22: Beim Lüfttemperatur 55°C | E22: 500 | F22: 400 | G22: 29.02189519
D23: Beim Lüfttemperatur 55°C
A24: Sammelschiene je 1m | B24: ABN | C24: 30x10 | D24: Beim Lüfttemperatur 55°C | E24: 250 | F24: 200 | G24: 4.546404682 | H24: 603 | I24: 29.2 | L24: 30x10 | M24: 200 | N24: 320 | O24: 400 | P24: 504
A25: Sammelschiene je 1m | B25: ABN | C25: 30x10 | D25: Beim Lüfttemperatur 55°C | E25: 400 | F25: 320 | G25: 11.91973244
A26: Sammelschiene je 1m | B26: ABN | C26: 30x10 | D26: Beim Lüfttemperatur 55°C | E26: 500 | F26: 400 | G26: 19.00083612
A27: Sammelschiene je 1m | B27: ABN | C27: 30x10 | D27: Beim Lüfttemperatur 55°C | E27: 630 | F27: 504 | G27: 30.96218227
A29: Sammelschiene je 1m | B29: ABN | C29: 40x10 | D29: Beim Lüfttemperatur 55°C | E29: 400 | F29: 320 | G29: 8.979878267 | H29: 753 | I29: 34.8 | L29: 40x10 | M29: 320 | N29: 400 | O29: 504 | P29: 640
A30: Sammelschiene je 1m | B30: ABN | C30: 40x10 | D30: Beim Lüfttemperatur 55°C | E30: 500 | F30: 400 | G30: 14.2226101
A31: Sammelschiene je 1m | B31: ABN | C31: 40x10 | D31: Beim Lüfttemperatur 55°C | E31: 630 | F31: 504 | G31: 23.03597368
A32: Sammelschiene je 1m | B32: ABN | C32: 40x10 | D32: Beim Lüfttemperatur 55°C | E32: 800 | F32: 640 | G32: 38.24876477
A34: Sammelschiene je 1m | B34: ABN | C34: 50x10 | D34: Beim Lüfttemperatur 55°C | E34: 630 | F34: 504 | G34: 18.2848978 | H34: 897 | I34: 39.8 | L34: 50x10 | M34: 504 | N34: 640 | O34: 800
A35: Sammelschiene je 1m | B35: ABN | C35: 50x10 | D35: Beim Lüfttemperatur 55°C | E35: 800 | F35: 640 | G35: 30.07798454
A36: Sammelschiene je 1m | B36: ABN | C36: 50x10 | D36: Beim Lüfttemperatur 55°C | E36: 1000 | F36: 800 | G36: 48.38820498
D37: Beim Lüfttemperatur 55°C
A38: Sammelschiene je 1m | B38: ABN | C38: 60x10 | D38: Beim Lüfttemperatur 55°C | E38: 800 | F38: 640 | G38: 25.18483186 | H38: 1037 | I38: 45.1 | L38: 60x10 | M38: 640 | N38: 800 | O38: 1000
A39: Sammelschiene je 1m | B39: ABN | C39: 60x10 | D39: Beim Lüfttemperatur 55°C | E39: 1000 | F39: 800 | G39: 40.13832578
A40: Sammelschiene je 1m | B40: ABN | C40: 60x10 | D40: Beim Lüfttemperatur 55°C | E40: 1250 | F40: 1000 | G40: 65.17559027
A42: Sammelschiene je 1m | B42: ABN | C42: 80x10 | D42: Beim Lüfttemperatur 55°C | E42: 800 | F42: 640 | G42: 19.0077597 | H42: 1306 | I42: 55.1 | L42: 80x10 | M42: 640 | N42: 800 | O42: 1000 | P42: 1280
A43: Sammelschiene je 1m | B43: ABN | C43: 80x10 | D43: Beim Lüfttemperatur 55°C | E43: 1000 | F43: 800 | G43: 30.10370105
A44: Sammelschiene je 1m | B44: ABN | C44: 80x10 | D44: Beim Lüfttemperatur 55°C | E44: 1250 | F44: 1000 | G44: 48.14192964
A45: Sammelschiene je 1m | B45: ABN | C45: 80x10 | D45: Beim Lüfttemperatur 55°C | E45: 1600 | F45: 1280 | G45: 81.46182728
A47: Sammelschiene je 1m | B47: ABN | C47: 100x10 | D47: Beim Lüfttemperatur 55°C | E47: 1000 | F47: 800 | G47: 24.76190476 | H47: 1570 | I47: 66 | L47: 100x10 | M47: 800 | N47: 1000 | O47: 1280
A48: Sammelschiene je 1m | B48: ABN | C48: 100x10 | D48: Beim Lüfttemperatur 55°C | E48: 1250 | F48: 1000 | G48: 39.4747426
A49: Sammelschiene je 1m | B49: ABN | C49: 100x10 | D49: Beim Lüfttemperatur 55°C | E49: 1600 | F49: 1280 | G49: 66.38867439
A51: Sammelschiene je 1m | B51: ABN | C51: 120x10 | D51: Beim Lüfttemperatur 55°C | E51: 1250 | F51: 1000 | G51: 32.31863839 | H51: 1832 | I51: 74.8 | L51: 120x10 | M51: 1000 | N51: 1280 | O51: 1600
A52: Sammelschiene je 1m | B52: ABN | C52: 120x10 | D52: Beim Lüfttemperatur 55°C | E52: 1600 | F52: 1280 | G52: 54.19885714
A53: Sammelschiene je 1m | B53: ABN | C53: 120x10 | D53: Beim Lüfttemperatur 55°C | E53: 2000 | F53: 1600 | G53: 86.91428571
A55: * - Thermisches Maximum des Stroms bei einer Lufttemperatur von 55°C und einer maximalen Kupfertemperatur von 90°C

Sheet Tabelle 4 - Pv_Sammelschiene1
A1: Art.Nr | B1: Beschreibung | C1: Breite | D1: Tiefe | E1: Querschnitt | F1: Länge | G1: Pol Menge, Stk
A2: XCU17C | B2: Cu-Schiene 30X5mm für B46-S81 Z-Form lang | C2: 30 | D2: 5 | E2: 30x5 | F2: 160 | G2: 1
A3: E-CU3005150 | B3: Kupferschiene 30x5x150 aus Kupfer 30x5, 6 Bohrungen | C3: 30 | D3: 5 | E3: 30x5 | F3: 150 | G3: 1
A4: XCU17A | B4: Cu-Schiene 30X5mm für ZW29-X68 | C4: 30 | D4: 5 | E4: 30x5 | F4: 318 | G4: 1
A5: XCU17B | B5: Cu-Schiene 30X5mm für B46-S81 Z-Form kurz | C5: 30 | D5: 5 | E5: 30x5 | F5: 90 | G5: 1
A6: MTSC12515 | B6: Sammelschiene Modul tief FB1 RE2 40mm CU 12x5mm 5p EBM 70mm | C6: 12 | D6: 5 | E6: 12x5 | F6: 245 | G6: 3
A7: MTSC23645 | B7: Sammelschiene Modul tief FB2 RE3 60mm CU 30x5mm 5p EBM 32mm | C7: 30 | D7: 5 | E7: 30x5 | F7: 495 | G7: 3
A8: XCGW182B2 | B8: CU-Sammelschienensatz 80x10mm 3p 1600A gelocht 580x100mm waagrecht FB2 für 1600A L3,N | C8: 80 | D8: 10 | E8: 80x10 | F8: 580 | G8: 1
A9: XCUW184B1 | B9: CU-SaS ungelocht 100x10x1080mm 1p 1600A | C9: 100 | D9: 10 | E9: 100x10 | F9: 1080 | G9: 1
A10: XWL910250N | B10: Wandlerlasche CU/Sachsen 100x10x250mm für 1600A (3 Stk.) | C10: 100 | D10: 10 | E10: 100x10 | F10: 250 | G10: 3
A11: XLSSAV23L | B11: Kupferlasche links | C11: 30 | D11: 5 | E11: 30x5 | F11: 307 | G11: 1
A12: XLSSAV23M | B12: Kupferlasche mitte | C12: 30 | D12: 5 | E12: 30x5 | F12: 242 | G12: 1
A13: MTSC23615 | B13: Sammelschiene Modul tief FB2 RE3 60mm CU 12x5mm 5p EBM 32mm | C13: 12 | D13: 5 | E13: 12x5 | F13: 495 | G13: 3
A14: XLSSAV23R | B14: Kupferlasche rechts | C14: 30 | D14: 5 | E14: 30x5 | F14: 307 | G14: 1
A15: XCUW182B1 | B15: CU-SaS ungelocht 100x10x580mm 1p 1600A | C15: 100 | D15: 10 | E15: 100x10 | F15: 580 | G15: 1
A16: ABNPC25132 | B16: Kupferschiene 30x10 Schrank Gr. 0 | C16: 12 | D16: 5 | E16: 12x5 | F16: 495 | G16: 3
A17: XCUW512E | B17: CU-Schiene FB2 12x5x540mm waagrecht einseitig um 45mm verlängert | C17: 12 | D17: 5 | E17: 12x5 | F17: 540 | G17: 1
A18: XCUW514 | B18: CU-Schiene FB4 12x5x995mm waagrecht ohne Überstand | C18: 12 | D18: 5 | E18: 12x5 | F18: 995 | G18: 1
A19: XWL310170N | B19: Wandlerlasche CU vernickelt 30x10x170mm ohne Befestigungsschrauben (3 Stk.) | C19: 30 | D19: 10 | E19: 30x10 | F19: 170 | G19: 3
A20: XAS991C | B20: CU-Sammelschiene 80x10mm 1p 1600A gebogen 482x187mm gelocht mit Montagezubehör | C20: 80 | D20: 10 | E20: 80x10 | F20: 626 | G20: 1
A21: XAS991D | B21: CU-Sammelschiene 80x10mm 1p 1600A gebogen 188x138mm gelocht mit Montagezubehör | C21: 80 | D21: 10 | E21: 80x10 | F21: 425 | G21: 1
A22: XAS991SE | B22: CU-Sammelschienensatz 80x10mm 3p 1600A Verbindung SaS zu NS-Schalter Pos. 4,5,6 | C22: 80 | D22: 10 | E22: 80x10 | F22: 1164 | G22: 1
A23: XCUW522 | B23: CU-Schiene FB2 20x5x495mm waagrecht ohne Überstand | C23: 20 | D23: 5 | E23: 20x5 | F23: 495 | G23: 1
A24: XCUW111K | B24: CU-Schiene FB1 12x10x198mm waagrecht zwischen Trägerprofil | C24: 12 | D24: 10 | E24: 12x10 | F24: 198 | G24: 1
A25: XCUW144 | B25: CU-Schiene FB4 40x10x995mm waagrecht ohne Überstand | C25: 40 | D25: 10 | E25: 40x10 | F25: 995 | G25: 1
A26: MTSC42535 | B26: Sammelschiene Modul tief FB4 RE2 40mm 2x CU 12x5mm 5p EBM 70mm | C26: 12 | D26: 10 | E26: 12x10 | F26: 995 | G26: 3
A27: XCUW134 | B27: CU-Schiene FB4 30x10x995mm waagrecht ohne Überstand | C27: 30 | D27: 10 | E27: 30x10 | F27: 995 | G27: 1
A28: MTSC22535 | B28: Sammelschiene Modul tief FB2 RE2 40mm 2x CU 12x5mm 5p EBM 70mm | C28: 12 | D28: 10 | E28: 12x10 | F28: 495 | G28: 3
A29: MTSC22643 | B29: Sammelschiene Modul tief FB2 RE2 60mm CU 30x5mm 3p EBM 32mm | C29: 30 | D29: 5 | E29: 30x5 | F29: 495 | G29: 3
A30: MTSC23735 | B30: Sammelschiene Modul tief FB2 RE3 60mm CU 12x10mm 5p EBM 70mm | C30: 12 | D30: 10 | E30: 12x10 | F30: 495 | G30: 3
A31: XCUW111 | B31: CU-Schiene FB1 12x10x245mm waagrecht ohne Überstand | C31: 12 | D31: 10 | E31: 12x10 | F31: 245 | G31: 0
A32: XCUW144B | B32: CU-Schiene FB4 40x10x1087mm waagrecht beidseitig um 46mm verlängert | C32: 40 | D32: 10 | E32: 40x10 | F32: 1087 | G32: 1
A33: XCUW512B | B33: CU-Schiene FB2 12x5x585mm waagrecht beidseitig um 45mm verlängert | C33: 12 | D33: 5 | E33: 12x5 | F33: 585 | G33: 1
A34: XAS991A | B34: CU-Sammelschiene 80x10mm 1p 1600A gebogen 170x187mm gelocht mit Montagezubehör | C34: 80 | D34: 10 | E34: 80x10 | F34: 406 | G34: 1
A35: XAS991B | B35: CU-Sammelschiene 80x10mm 1p 1600A gebogen 615x187mm gelocht mit Montagezubehör | C35: 80 | D35: 10 | E35: 80x10 | F35: 719 | G35: 1
A36: XAS991E | B36: CU-Sammelschiene 80x10mm 1p 1600A gebogen 188x500mm gelocht mit Montagezubehör | C36: 80 | D36: 10 | E36: 80x10 | F36: 547 | G36: 1
A37: XAS991SE1 | B37: CU-Sammelschienensatz 80x10mm 3p 1600A Verbindung SaS zu NS-Schalter Pos. 1,2,3 | C37: 80 | D37: 10 | E37: 80x10 | F37: 1646 | G37: 1
A38: XAS991SE2 | B38: CU-Sammelschienensatz 80x10mm 3p 1600A Verbindung SaS zu NS-Schalter Pos. 1 | C38: 80 | D38: 10 | E38: 80x10 | F38: 1200 | G38: 1
A39: XCGW182B1 | B39: CU-Sammelschienensatz 100x10mm 1p 1600A gelocht 580x100mm waagrecht FB2 für 1600A L1,L2 | C39: 100 | D39: 10 | E39: 100x10 | F39: 580 | G39: 1
A40: XCGW182WE3 | B40: CU-Sammelschienensatz 80x10mm 3p 1600A agewinkelt 584x10mm für Versatz auf 2. Ebene | C40: 80 | D40: 10 | E40: 80x10 | F40: 2190 | G40: 1
A41: XCUW183B1 | B41: CU-SaS ungelocht 100x10x830mm 1p 1600A | C41: 100 | D41: 10 | E41: 100x10 | F41: 830 | G41: 1
A42: XCUW185B1 | B42: CU-SaS ungelocht 100x10x1330mm 1p 1600A | C42: 100 | D42: 10 | E42: 100x10 | F42: 1330 | G42: 1
A43: ABNPC25133 | B43: Kupferschiene 30x10 Schrank Gr. 1 | C43: 30 | D43: 10 | E43: 30x10 | F43: 686 | G43: 1
A44: ABNPC25134 | B44: Kupferschiene 30x10 Schrank Gr. 2 | C44: 30 | D44: 10 | E44: 30x10 | F44: 1016 | G44: 1
A45: ABNPC25142 | B45: Kupferschiene 40x10 Schrank Gr. 0 | C45: 40 | D45: 10 | E45: 40x10 | F45: 496 | G45: 1
A46: ABNPC25143 | B46: Kupferschiene 40x10 Schrank Gr. 1 | C46: 40 | D46: 10 | E46: 40x10 | F46: 686 | G46: 1
A47: ABNPC25144 | B47: Kupferschiene 40x10 Schrank Gr. 2 | C47: 40 | D47: 10 | E47: 40x10 | F47: 1016 | G47: 1
A48: ABNPC25532 | B48: Kupferschiene 30x5 Schrank Gr. 0 | C48: 30 | D48: 5 | E48: 30x5 | F48: 496 | G48: 1
A49: ABNPC25533 | B49: Kupferschiene 30x5 Schrank Gr. 1 | C49: 30 | D49: 5 | E49: 30x5 | F49: 686 | G49: 1
A50: ABNPC25534 | B50: Kupferschiene 30x5 Schrank Gr. 2 | C50: 30 | D50: 5 | E50: 30x5 | F50: 1016 | G50: 1
A51: E-CU3005153 | B51: Kupferschiene 30x5x153 aus Kupfer 30x5, 2 x Loch 11 | C51: 30 | D51: 5 | E51: 30x5 | F51: 153 | G51: 1
A52: E-CU3005178 | B52: Kupferschiene 30x5x170 aus Kupfer 30x5, versch. Löch | C52: 30 | D52: 5 | E52: 30x5 | F52: 170 | G52: 1
A53: ABNPC30131 | B53: CU-Schiene FB1 30x10mm waagrecht, gelocht für Wandlerbaustein 1-fach | C53: 30 | D53: 10 | E53: 30x10 | F53: 218 | G53: 1
A54: ABNPC30132 | B54: CU-Schiene FB2 30x10mm waagrecht, gelocht für Wandlerbaustein 1-fach | C54: 30 | D54: 10 | E54: 30x10 | F54: 388 | G54: 1
A55: ABNPC30133 | B55: CU-Schiene FB3 30x10mm waagrecht, gelocht für Wandlerbaustein 1-fach | C55: 30 | D55: 10 | E55: 30x10 | F55: 638 | G55: 1
A56: ABNPC30134 | B56: CU-Schiene FB4 30x10mm waagrecht, gelocht für Wandlerbaustein 1-fach | C56: 30 | D56: 10 | E56: 30x10 | F56: 888 | G56: 1
A57: ABNPC30135 | B57: CU-Schiene FB5 30x10mm waagrecht, gelocht für Wandlerbaustein 1-fach | C57: 30 | D57: 10 | E57: 30x10 | F57: 1138 | G57: 1
A58: ABNPC30141 | B58: CU-Schiene FB1 40x10mm waagrecht, gelocht für Wandlerbaustein 1-fach | C58: 40 | D58: 10 | E58: 40x10 | F58: 218 | G58: 1
A59: ABNPC30142 | B59: CU-Schiene FB2 40x10mm waagrecht, gelocht für Wandlerbaustein 1-fach | C59: 40 | D59: 10 | E59: 40x10 | F59: 388 | G59: 1
A60: ABNPC30143 | B60: CU-Schiene FB3 40x10mm waagrecht, gelocht für Wandlerbaustein 1-fach | C60: 40 | D60: 10 | E60: 40x10 | F60: 638 | G60: 1
A61: ABNPC30144 | B61: CU-Schiene FB4 40x10mm waagrecht, gelocht für Wandlerbaustein 1-fach | C61: 40 | D61: 10 | E61: 40x10 | F61: 888 | G61: 1
A62: ABNPC30145 | B62: CU-Schiene FB5 40x10mm waagrecht, gelocht für Wandlerbaustein 1-fach | C62: 40 | D62: 10 | E62: 40x10 | F62: 1138 | G62: 1
A63: ABNPC30531 | B63: CU-Schiene FB1 30x5mm waagrecht, gelocht für Wandlerbaustein 1-fach | C63: 30 | D63: 5 | E63: 30x5 | F63: 218 | G63: 1
A64: ABNPC30532 | B64: CU-Schiene FB2 30x5mm waagrecht, gelocht für Wandlerbaustein 1-fach | C64: 30 | D64: 5 | E64: 30x5 | F64: 388 | G64: 1
A65: ABNPC30533 | B65: CU-Schiene FB3 30x5mm waagrecht, gelocht für Wandlerbaustein 1-fach | C65: 30 | D65: 5 | E65: 30x5 | F65: 638 | G65: 1
A66: ABNPC30534 | B66: CU-Schiene FB4 30x5mm waagrecht, gelocht für Wandlerbaustein 1-fach | C66: 30 | D66: 5 | E66: 30x5 | F66: 888 | G66: 1
A67: ABNPC30535 | B67: CU-Schiene FB5 30x5mm waagrecht, gelocht für Wandlerbaustein 1-fach | C67: 30 | D67: 5 | E67: 30x5 | F67: 1138 | G67: 1
A68: ABNPC30541 | B68: CU-Schiene FB1 40x5mm waagrecht, gelocht für Wandlerbaustein 1-fach | C68: 40 | D68: 5 | E68: 40x5 | F68: 218 | G68: 1
A69: ABNPC30542 | B69: CU-Schiene FB2 40x5mm waagrecht, gelocht für Wandlerbaustein 1-fach | C69: 40 | D69: 5 | E69: 40x5 | F69: 388 | G69: 1
A70: ABNPC30543 | B70: CU-Schiene FB3 40x5mm waagrecht, gelocht für Wandlerbaustein 1-fach | C70: 40 | D70: 5 | E70: 40x5 | F70: 638 | G70: 1
A71: ABNPC30544 | B71: CU-Schiene FB4 40x5mm waagrecht, gelocht für Wandlerbaustein 1-fach | C71: 40 | D71: 5 | E71: 40x5 | F71: 888 | G71: 1
A72: ABNPC30545 | B72: CU-Schiene FB5 40x5mm waagrecht, gelocht für Wandlerbaustein 1-fach | C72: 40 | D72: 5 | E72: 40x5 | F72: 1138 | G72: 1
A73: ABNPC31141 | B73: CU-Schiene FB1 40x10mm waagrecht, gelocht einseitig verlängert für Wandlerbaustein 1-fach | C73: 40 | D73: 10 | E73: 40x10 | F73: 218 | G73: 1
A74: ABNPC31142 | B74: CU-Schiene FB2 40x10mm waagrecht, gelocht einseitig verlängert für Wandlerbaustein 1-fach | C74: 40 | D74: 10 | E74: 40x10 | F74: 388 | G74: 1
A75: ABNPC31143 | B75: CU-Schiene FB3 40x10mm waagrecht, gelocht einseitig verlängert für Wandlerbaustein 1-fach | C75: 40 | D75: 10 | E75: 40x10 | F75: 638 | G75: 1
A76: ABNPC31144 | B76: CU-Schiene FB4 40x10mm waagrecht, gelocht einseitig verlängert für Wandlerbaustein 1-fach | C76: 40 | D76: 10 | E76: 40x10 | F76: 888 | G76: 1
A77: ABNPC31145 | B77: CU-Schiene FB5 40x10mm waagrecht, gelocht einseitig verlängert für Wandlerbaustein 1-fach | C77: 40 | D77: 10 | E77: 40x10 | F77: 1138 | G77: 1
A78: ABNPC31541 | B78: CU-Schiene FB1 40x5mm waagrecht, gelocht einseitig verlängert für Wandlerbaustein 1-fach | C78: 40 | D78: 5 | E78: 40x5 | F78: 218 | G78: 1
A79: ABNPC31542 | B79: CU-Schiene FB2 40x5mm waagrecht, gelocht einseitig verlängert für Wandlerbaustein 1-fach | C79: 40 | D79: 5 | E79: 40x5 | F79: 388 | G79: 1
A80: ABNPC31543 | B80: CU-Schiene FB3 40x5mm waagrecht, gelocht einseitig verlängert für Wandlerbaustein 1-fach | C80: 40 | D80: 5 | E80: 40x5 | F80: 638 | G80: 1
A81: ABNPC31544 | B81: CU-Schiene FB4 40x5mm waagrecht, gelocht einseitig verlängert für Wandlerbaustein 1-fach | C81: 40 | D81: 5 | E81: 40x5 | F81: 888 | G81: 1
A82: ABNPC31545 | B82: CU-Schiene FB5 40x5mm waagrecht, gelocht einseitig verlängert für Wandlerbaustein 1-fach | C82: 40 | D82: 5 | E82: 40x5 | F82: 1138 | G82: 1
A83: ABNPC32141 | B83: CU-Schiene FB1 40x10mm waagrecht, gelocht beidseitig verlängert für Wandlerbaustein 1-fach | C83: 40 | D83: 10 | E83: 40x10 | F83: 218 | G83: 1
A84: ABNPC32142 | B84: CU-Schiene FB2 40x10mm waagrecht, gelocht beidseitig verlängert für Wandlerbaustein 1-fach | C84: 40 | D84: 10 | E84: 40x10 | F84: 388 | G84: 1
A85: ABNPC32143 | B85: CU-Schiene FB3 40x10mm waagrecht, gelocht beidseitig verlängert für Wandlerbaustein 1-fach | C85: 40 | D85: 10 | E85: 40x10 | F85: 638 | G85: 1
A86: ABNPC32144 | B86: CU-Schiene FB4 40x10mm waagrecht, gelocht beidseitig verlängert für Wandlerbaustein 1-fach | C86: 40 | D86: 10 | E86: 40x10 | F86: 888 | G86: 1
A87: ABNPC32145 | B87: CU-Schiene FB5 40x10mm waagrecht, gelocht beidseitig verlängert für Wandlerbaustein 1-fach | C87: 40 | D87: 10 | E87: 40x10 | F87: 1138 | G87: 1
A88: ABNPC32541 | B88: CU-Schiene FB1 40x5mm waagrecht, gelocht beidseitig verlängert für Wandlerbaustein 1-fach | C88: 40 | D88: 5 | E88: 40x5 | F88: 218 | G88: 1
A89: ABNPC32542 | B89: CU-Schiene FB2 40x5mm waagrecht, gelocht beidseitig verlängert für Wandlerbaustein 1-fach | C89: 40 | D89: 5 | E89: 40x5 | F89: 388 | G89: 1
A90: ABNPC32543 | B90: CU-Schiene FB3 40x5mm waagrecht, gelocht beidseitig verlängert für Wandlerbaustein 1-fach | C90: 40 | D90: 5 | E90: 40x5 | F90: 638 | G90: 1
A91: ABNPC32544 | B91: CU-Schiene FB4 40x5mm waagrecht, gelocht beidseitig verlängert für Wandlerbaustein 1-fach | C91: 40 | D91: 5 | E91: 40x5 | F91: 888 | G91: 1
A92: ABNPC32545 | B92: CU-Schiene FB5 40x5mm waagrecht, gelocht beidseitig verlängert für Wandlerbaustein 1-fach | C92: 40 | D92: 5 | E92: 40x5 | F92: 1138 | G92: 1
A93: ABNPC33130 | B93: CU-Schiene FB0,5 30x10mm waagrecht, gelocht für Wandlerlasche | C93: 30 | D93: 10 | E93: 30x10 | F93: 188 | G93: 1
A94: ABNPC33141 | B94: CU-Schiene FB1 40x10mm waagrecht, gelocht, links für Wandlerlasche | C94: 40 | D94: 10 | E94: 40x10 | F94: 263 | G94: 1
A95: ABNPC33142 | B95: CU-Schiene FB2 40x10mm waagrecht, gelocht, links für Wandlerlasche | C95: 40 | D95: 10 | E95: 40x10 | F95: 513 | G95: 1
A96: ABNPC33143 | B96: CU-Schiene FB3 40x10mm waagrecht, gelocht, links für Wandlerlasche | C96: 40 | D96: 10 | E96: 40x10 | F96: 763 | G96: 1
A97: ABNPC34141 | B97: CU-Schiene FB1 40x10mm waagrecht, gelocht, rechts für Wandlerlasche | C97: 40 | D97: 10 | E97: 40x10 | F97: 283 | G97: 1
A98: ABNPC34142 | B98: CU-Schiene FB2 40x10mm waagrecht, gelocht, rechts für Wandlerlasche | C98: 40 | D98: 10 | E98: 40x10 | F98: 533 | G98: 1
A99: ABNPC34143 | B99: CU-Schiene FB3 40x10mm waagrecht, gelocht, rechts für Wandlerlasche | C99: 40 | D99: 10 | E99: 40x10 | F99: 783 | G99: 1
A100: ABNPC35141 | B100: CU-Schiene FB1 40x10mm waagrecht, gelocht, links einseitig verlängert für Wandlerlasche | C100: 40 | D100: 10 | E100: 40x10 | F100: 322 | G100: 1
A101: ABNPC35142 | B101: CU-Schiene FB2 40x10mm waagrecht, gelocht, links einseitig verlängert für Wandlerlasche | C101: 40 | D101: 10 | E101: 40x10 | F101: 596 | G101: 1
A102: ABNPC35143 | B102: CU-Schiene FB3 40x10mm waagrecht, gelocht, links einseitig verlängert für Wandlerlasche | C102: 40 | D102: 10 | E102: 40x10 | F102: 862 | G102: 1
A103: ABNPC36141 | B103: CU-Schiene FB1 40x10mm waagrecht, gelocht, rechts einseitig verlängert für Wandlerlasche | C103: 40 | D103: 10 | E103: 40x10 | F103: 342 | G103: 1
A104: ABNPC36142 | B104: CU-Schiene FB2 40x10mm waagrecht, gelocht, rechts einseitig verlängert für Wandlerlasche | C104: 40 | D104: 10 | E104: 40x10 | F104: 592 | G104: 1
A105: ABNPC36143 | B105: CU-Schiene FB3 40x10mm waagrecht, gelocht, rechts einseitig verlängert für Wandlerlasche | C105: 40 | D105: 10 | E105: 40x10 | F105: 842 | G105: 1
A106: MFSC12613 | B106: Sammelschiene Modul flach FB1 RE2 60mm CU 12x5mm 3p EBM 32mm | C106: 12 | D106: 5 | E106: 12x5 | F106: 245 | G106: 3
A107: MFSC12633 | B107: Sammelschiene Modul flach FB1 RE2 60mm CU 12x10mm 3p EBM 32mm | C107: 12 | D107: 10 | E107: 12x10 | F107: 245 | G107: 3
A108: MFSC12643 | B108: Sammelschiene Modul flach FB1 RE2 60mm CU 30x5mm 3p EBM 32mm | C108: 3 | D108: 5 | E108: 3x5 | F108: 245 | G108: 3
A109: MFSC13615 | B109: Sammelschiene Modul flach FB1 RE3 60mm CU 12x5mm 5p EBM 32mm | C109: 12 | D109: 5 | E109: 12x5 | F109: 245 | G109: 3
A110: MFSC13625 | B110: Sammelschiene Modul flach FB1 RE3 60mm CU 20x5mm 5p EBM 32mm | C110: 20 | D110: 5 | E110: 20x5 | F110: 245 | G110: 3
A111: MFSC13635 | B111: Sammelschiene Modul flach FB1 RE3 60mm CU 12x10mm 5p EBM 32mm | C111: 12 | D111: 10 | E111: 12x10 | F111: 245 | G111: 3
A112: MFSC13645 | B112: Sammelschiene Modul flach FB1 RE3 60mm CU 30x5mm 5p EBM 32mm | C112: 30 | D112: 5 | E112: 30x5 | F112: 245 | G112: 3
A113: MFSC15963 | B113: Sammelschiene Modul flach FB1 RE5 185mm CU 30x10mm 3p EBM 150mm | C113: 30 | D113: 10 | E113: 30x10 | F113: 245 | G113: 3
A114: MFSC15983 | B114: Sammelschiene Modul flach FB1 RE5 185mm CU 50x10mm 3p EBM 150mm | C114: 50 | D114: 10 | E114: 50x10 | F114: 245 | G114: 3
A115: MFSC17965 | B115: Sammelschiene Modul flach FB1 RE7 185mm CU 30x10mm 5p EBM 150mm | C115: 30 | D115: 10 | E115: 30x10 | F115: 245 | G115: 3
A116: MFSC18985 | B116: Sammelschiene Modul flach FB1 RE8 185mm CU 50x10mm 5p EBM 150mm | C116: 50 | D116: 10 | E116: 50x10 | F116: 245 | G116: 3
A117: MFSC22613 | B117: Sammelschiene Modul flach FB2 RE2 60mm CU 12x5mm 3p EBM 32mm | C117: 12 | D117: 5 | E117: 12x5 | F117: 495 | G117: 3
A118: MFSC22633 | B118: Sammelschiene Modul flach FB2 RE2 60mm CU 12x10mm 3p EBM 32mm | C118: 12 | D118: 10 | E118: 12x10 | F118: 495 | G118: 3
A119: MFSC22643 | B119: Sammelschiene Modul flach FB2 RE2 60mm CU 30x5mm 3p EBM 32mm | C119: 30 | D119: 5 | E119: 30x5 | F119: 495 | G119: 3
A120: MFSC23615 | B120: Sammelschiene Modul flach FB2 RE3 60mm CU 12x5mm 5p EBM 32mm | C120: 12 | D120: 5 | E120: 12x5 | F120: 495 | G120: 3
A121: MFSC23635 | B121: Sammelschiene Modul flach FB2 RE3 60mm CU 12x10mm 5p EBM 32mm | C121: 12 | D121: 10 | E121: 12x10 | F121: 495 | G121: 3
A122: MFSC23645 | B122: Sammelschiene Modul flach FB2 RE3 60mm CU 30x5mm 5p EBM 32mm | C122: 30 | D122: 5 | E122: 30x5 | F122: 495 | G122: 3
A123: MFSC25963 | B123: Sammelschiene Modul flach FB2 RE5 185mm CU 30x10mm 3p EBM 150mm | C123: 30 | D123: 10 | E123: 30x10 | F123: 495 | G123: 3
A124: MFSC25983 | B124: Sammelschiene Modul flach FB2 RE5 185mm CU 50x10mm 3p EBM 150mm | C124: 50 | D124: 10 | E124: 50x10 | F124: 495 | G124: 3
A125: MFSC27965 | B125: Sammelschiene Modul flach FB2 RE7 185mm CU 30x10mm 5p EBM 150mm | C125: 30 | D125: 10 | E125: 30x10 | F125: 495 | G125: 3
A126: MFSC28985 | B126: Sammelschiene Modul flach FB2 RE8 185mm CU 50x10mm 5p EBM 150mm | C126: 50 | D126: 10 | E126: 50x10 | F126: 495 | G126: 3
A127: MFSC32613 | B127: Sammelschiene Modul flach FB3 RE2 60mm CU 12x5mm 3p EBM 32mm | C127: 12 | D127: 5 | E127: 12x5 | F127: 745 | G127: 3
A128: MFSC32633 | B128: Sammelschiene Modul flach FB3 RE2 60mm CU 12x10mm 3p EBM 32mm | C128: 12 | D128: 10 | E128: 12x10 | F128: 745 | G128: 3
A129: MFSC32643 | B129: Sammelschiene Modul flach FB3 RE2 60mm CU 30x5mm 3p EBM 32mm | C129: 30 | D129: 5 | E129: 30x5 | F129: 745 | G129: 3
A130: MFSC33615 | B130: Sammelschiene Modul flach FB3 RE3 60mm CU 12x5mm 5p EBM 32mm | C130: 12 | D130: 5 | E130: 12x5 | F130: 745 | G130: 3
A131: MFSC33635 | B131: Sammelschiene Modul flach FB3 RE3 60mm CU 12x10mm 5p EBM 32mm | C131: 12 | D131: 10 | E131: 12x10 | F131: 745 | G131: 3
A132: MFSC33645 | B132: Sammelschiene Modul flach FB3 RE3 60mm CU 30x5mm 5p EBM 32mm | C132: 30 | D132: 5 | E132: 30x5 | F132: 745 | G132: 3
A133: MFSC35963 | B133: Sammelschiene Modul flach FB3 RE5 185mm CU 30x10mm 3p EBM 150mm | C133: 30 | D133: 10 | E133: 30x10 | F133: 745 | G133: 3
A134: MFSC35983 | B134: Sammelschiene Modul flach FB3 RE5 185mm CU 50x10mm 3p EBM 150mm | C134: 50 | D134: 10 | E134: 50x10 | F134: 745 | G134: 3
A135: MFSC37965 | B135: Sammelschiene Modul flach FB3 RE7 185mm CU 30x10mm 5p EBM 150mm | C135: 30 | D135: 10 | E135: 30x10 | F135: 745 | G135: 3
A136: MFSC38985 | B136: Sammelschiene Modul flach FB3 RE8 185mm CU 50x10mm 5p EBM 150mm | C136: 50 | D136: 10 | E136: 50x10 | F136: 745 | G136: 3
A137: MFSC42613 | B137: Sammelschiene Modul flach FB4 RE2 60mm CU 12x5mm 3p EBM 32mm | C137: 12 | D137: 5 | E137: 12x5 | F137: 995 | G137: 3
A138: MFSC42633 | B138: Sammelschiene Modul flach FB4 RE2 60mm CU 12x10mm 3p EBM 32mm | C138: 12 | D138: 10 | E138: 12x10 | F138: 995 | G138: 3
A139: MFSC42643 | B139: Sammelschiene Modul flach FB4 RE2 60mm CU 30x5mm 3p EBM 32mm | C139: 30 | D139: 5 | E139: 30x5 | F139: 995 | G139: 3
A140: MFSC43615 | B140: Sammelschiene Modul flach FB4 RE3 60mm CU 12x5mm 5p EBM 32mm | C140: 12 | D140: 5 | E140: 12x5 | F140: 995 | G140: 3
A141: MFSC43635 | B141: Sammelschiene Modul flach FB4 RE3 60mm CU 12x10mm 5p EBM 32mm | C141: 12 | D141: 10 | E141: 12x10 | F141: 995 | G141: 3
A142: MFSC43645 | B142: Sammelschiene Modul flach FB4 RE3 60mm CU 30x5mm 5p EBM 32mm | C142: 30 | D142: 5 | E142: 30x5 | F142: 995 | G142: 3
A143: MFSC45963 | B143: Sammelschiene Modul flach FB4 RE5 185mm CU 30x10mm 3p EBM 150mm | C143: 30 | D143: 10 | E143: 30x10 | F143: 995 | G143: 3
A144: MFSC45983 | B144: Sammelschiene Modul flach FB4 RE5 185mm CU 50x10mm 3p EBM 150mm | C144: 50 | D144: 10 | E144: 50x10 | F144: 995 | G144: 3
A145: MFSC47965 | B145: Sammelschiene Modul flach FB4 RE7 185mm CU 30x10mm 5p EBM 150mm | C145: 30 | D145: 10 | E145: 30x10 | F145: 995 | G145: 3
A146: MFSC48985 | B146: Sammelschiene Modul flach FB4 RE8 185mm CU 50x10mm 5p EBM 150mm | C146: 50 | D146: 10 | E146: 50x10 | F146: 995 | G146: 3
A147: MFSC52613 | B147: Sammelschiene Modul flach FB5 RE2 60mm CU 12x5mm 3p EBM 32mm | C147: 12 | D147: 5 | E147: 12x5 | F147: 1245 | G147: 3
A148: MFSC52633 | B148: Sammelschiene Modul flach FB5 RE2 60mm CU 12x10mm 3p EBM 32mm | C148: 12 | D148: 10 | E148: 12x10 | F148: 1245 | G148: 3
A149: MFSC52643 | B149: Sammelschiene Modul flach FB5 RE2 60mm CU 30x5mm 3p EBM 32mm | C149: 30 | D149: 5 | E149: 30x5 | F149: 1245 | G149: 3
A150: MFSC53615 | B150: Sammelschiene Modul flach FB5 RE3 60mm CU 12x5mm 5p EBM 32mm | C150: 12 | D150: 5 | E150: 12x5 | F150: 1245 | G150: 3
A151: MFSC53635 | B151: Sammelschiene Modul flach FB5 RE3 60mm CU 12x10mm 5p EBM 32mm | C151: 12 | D151: 10 | E151: 12x10 | F151: 1245 | G151: 3
A152: MFSC53645 | B152: Sammelschiene Modul flach FB5 RE3 60mm CU 30x5mm 5p EBM 32mm | C152: 30 | D152: 5 | E152: 30x5 | F152: 1245 | G152: 3
A153: MFSC55963 | B153: Sammelschiene Modul flach FB5 RE5 185mm CU 30x10mm 3p EBM 150mm | C153: 30 | D153: 10 | E153: 30x10 | F153: 1245 | G153: 3
A154: MFSC55983 | B154: Sammelschiene Modul flach FB5 RE5 185mm CU 50x10mm 3p EBM 150mm | C154: 50 | D154: 10 | E154: 50x10 | F154: 1245 | G154: 3
A155: MFSC57965 | B155: Sammelschiene Modul flach FB5 RE7 185mm CU 30x10mm 5p EBM 150mm | C155: 30 | D155: 10 | E155: 30x10 | F155: 1245 | G155: 3
A156: MFSC58985 | B156: Sammelschiene Modul flach FB5 RE8 185mm CU 50x10mm 5p EBM 150mm | C156: 50 | D156: 10 | E156: 50x10 | F156: 1245 | G156: 3
A157: MTSC12535 | B157: Sammelschiene Modul tief FB1 RE2 40mm 2x CU 12x5mm 5p EBM 70mm | C157: 12 | D157: 5 | E157: 12x5 | F157: 245 | G157: 3
A158: MTSC12613 | B158: Sammelschiene Modul tief FB1 RE2 60mm CU 12x5mm 3p EBM 32mm | C158: 12 | D158: 5 | E158: 12x5 | F158: 245 | G158: 3
A159: MTSC12633 | B159: Sammelschiene Modul tief FB1 RE2 60mm CU 12x10mm 3p EBM 32mm | C159: 12 | D159: 10 | E159: 12x10 | F159: 245 | G159: 3
A160: MTSC12643 | B160: Sammelschiene Modul tief FB1 RE2 60mm CU 30x5mm 3p EBM 32mm | C160: 30 | D160: 5 | E160: 30x5 | F160: 245 | G160: 3
A161: MTSC12733 | B161: Sammelschiene Modul tief FB1 RE2 60mm CU 12x10mm 3p EBM 70mm | C161: 12 | D161: 10 | E161: 12x10 | F161: 245 | G161: 3
A162: MTSC12743 | B162: Sammelschiene Modul tief FB1 RE2 60mm CU 30x5mm 3p EBM 70mm | C162: 30 | D162: 5 | E162: 30x5 | F162: 245 | G162: 3
A163: MTSC12763 | B163: Sammelschiene Modul tief FB1 RE2 60mm CU 30x10mm 3p EBM 70mm | C163: 30 | D163: 10 | E163: 30x10 | F163: 245 | G163: 3
A164: MTSC13615 | B164: Sammelschiene Modul tief FB1 RE3 60mm CU 12x5mm 5p EBM 32mm | C164: 12 | D164: 5 | E164: 12x5 | F164: 245 | G164: 3
A165: MTSC13635 | B165: Sammelschiene Modul tief FB1 RE3 60mm CU 12x10mm 5p EBM 32mm | C165: 12 | D165: 10 | E165: 12x10 | F165: 245 | G165: 3
A166: MTSC13645 | B166: Sammelschiene Modul tief FB1 RE3 60mm CU 30x5mm 5p EBM 32mm | C166: 30 | D166: 5 | E166: 30x5 | F166: 245 | G166: 3
A167: MTSC13735 | B167: Sammelschiene Modul tief FB1 RE3 60mm CU 12x10mm 5p EBM 70mm | C167: 12 | D167: 10 | E167: 12x10 | F167: 245 | G167: 3
A168: MTSC13745 | B168: Sammelschiene Modul tief FB1 RE3 60mm CU 30x5mm 5p EBM 70mm | C168: 30 | D168: 5 | E168: 30x5 | F168: 245 | G168: 3
A169: MTSC13765 | B169: Sammelschiene Modul tief FB1 RE3 60mm CU 30x10mm 5p EBM 70mm | C169: 30 | D169: 10 | E169: 30x10 | F169: 245 | G169: 3
A170: MTSC15963 | B170: Sammelschiene Modul tief FB1 RE5 185mm CU 30x10mm 3p EBM 150mm | C170: 30 | D170: 10 | E170: 30x10 | F170: 245 | G170: 3
A171: MTSC15983 | B171: Sammelschiene Modul tief FB1 RE5 185mm CU 50x10mm 3p EBM 150mm | C171: 50 | D171: 10 | E171: 50x10 | F171: 245 | G171: 3
A172: MTSC17965 | B172: Sammelschiene Modul tief FB1 RE7 185mm CU 30x10mm 5p EBM 150mm | C172: 30 | D172: 10 | E172: 30x10 | F172: 245 | G172: 3
A173: MTSC18985 | B173: Sammelschiene Modul tief FB1 RE8 185mm CU 50x10mm 5p EBM 150mm | C173: 50 | D173: 10 | E173: 50x10 | F173: 245 | G173: 3
A174: MTSC22515 | B174: Sammelschiene Modul tief FB2 RE2 40mm CU 12x5mm 5p EBM 70mm | C174: 12 | D174: 5 | E174: 12x5 | F174: 495 | G174: 3
A175: MTSC22613 | B175: Sammelschiene Modul tief FB2 RE2 60mm CU 12x5mm 3p EBM 32mm | C175: 12 | D175: 5 | E175: 12x5 | F175: 495 | G175: 3
A176: MTSC22633 | B176: Sammelschiene Modul tief FB2 RE2 60mm CU 12x10mm 3p EBM 32mm | C176: 12 | D176: 10 | E176: 12x10 | F176: 495 | G176: 3
A177: MTSC22653 | B177: Sammelschiene Modul tief FB2 RE2 60mm CU 20x10mm 3p EBM 32mm | C177: 20 | D177: 10 | E177: 20x10 | F177: 495 | G177: 3
A178: MTSC22733 | B178: Sammelschiene Modul tief FB2 RE2 60mm CU 12x10mm 3p EBM 70mm | C178: 12 | D178: 10 | E178: 12x10 | F178: 495 | G178: 3
A179: MTSC22743 | B179: Sammelschiene Modul tief FB2 RE2 60mm CU 30x5mm 3p EBM 70mm | C179: 30 | D179: 5 | E179: 30x5 | F179: 495 | G179: 3
A180: MTSC22763 | B180: Sammelschiene Modul tief FB2 RE2 60mm CU 30x10mm 3p EBM 70mm | C180: 30 | D180: 10 | E180: 30x10 | F180: 495 | G180: 3
A181: MTSC23635 | B181: Sammelschiene Modul tief FB2 RE3 60mm CU 12x10mm 5p EBM 32mm | C181: 12 | D181: 10 | E181: 12x10 | F181: 495 | G181: 3
A182: MTSC23745 | B182: Sammelschiene Modul tief FB2 RE3 60mm CU 30x5mm 5p EBM 70mm | C182: 30 | D182: 5 | E182: 30x5 | F182: 495 | G182: 3
A183: MTSC23765 | B183: Sammelschiene Modul tief FB2 RE3 60mm CU 30x10mm 5p EBM 70mm | C183: 30 | D183: 10 | E183: 30x10 | F183: 495 | G183: 3
A184: MTSC25963 | B184: Sammelschiene Modul tief FB2 RE5 185mm CU 30x10mm 3p EBM 150mm | C184: 30 | D184: 10 | E184: 30x10 | F184: 495 | G184: 3
A185: MTSC25983 | B185: Sammelschiene Modul tief FB2 RE5 185mm CU 50x10mm 3p EBM 150mm | C185: 50 | D185: 10 | E185: 50x10 | F185: 495 | G185: 3
A186: MTSC27965 | B186: Sammelschiene Modul tief FB2 RE7 185mm CU 30x10mm 5p EBM 150mm | C186: 30 | D186: 10 | E186: 30x10 | F186: 495 | G186: 3
A187: MTSC28985 | B187: Sammelschiene Modul tief FB2 RE8 185mm CU 50x10mm 5p EBM 150mm | C187: 50 | D187: 10 | E187: 50x10 | F187: 495 | G187: 3
A188: MTSC32515 | B188: Sammelschiene Modul tief FB3 RE2 40mm CU 12x5mm 5p EBM 70mm | C188: 12 | D188: 5 | E188: 12x5 | F188: 745 | G188: 3
A189: MTSC32535 | B189: Sammelschiene Modul tief FB3 RE2 40mm 2x CU 12x5mm 5p EBM 70mm | C189: 12 | D189: 5 | E189: 12x5 | F189: 745 | G189: 3
A190: MTSC32613 | B190: Sammelschiene Modul tief FB3 RE2 60mm CU 12x5mm 3p EBM 32mm | C190: 12 | D190: 5 | E190: 12x5 | F190: 745 | G190: 3
A191: MTSC32633 | B191: Sammelschiene Modul tief FB3 RE2 60mm CU 12x10mm 3p EBM 32mm | C191: 12 | D191: 10 | E191: 12x10 | F191: 745 | G191: 3
A192: MTSC32643 | B192: Sammelschiene Modul tief FB3 RE2 60mm CU 30x5mm 3p EBM 32mm | C192: 30 | D192: 5 | E192: 30x5 | F192: 745 | G192: 3
A193: MTSC32733 | B193: Sammelschiene Modul tief FB3 RE2 60mm CU 12x10mm 3p EBM 70mm | C193: 12 | D193: 10 | E193: 12x10 | F193: 745 | G193: 3
A194: MTSC32743 | B194: Sammelschiene Modul tief FB3 RE2 60mm CU 30x5mm 3p EBM 70mm | C194: 30 | D194: 5 | E194: 30x5 | F194: 745 | G194: 3
A195: MTSC32763 | B195: Sammelschiene Modul tief FB3 RE2 60mm CU 30x10mm 3p EBM 70mm | C195: 30 | D195: 10 | E195: 30x10 | F195: 745 | G195: 3
A196: MTSC33615 | B196: Sammelschiene Modul tief FB3 RE3 60mm CU 12x5mm 5p EBM 32mm | C196: 12 | D196: 5 | E196: 12x5 | F196: 745 | G196: 3
A197: MTSC33635 | B197: Sammelschiene Modul tief FB3 RE3 60mm CU 12x10mm 5p EBM 32mm | C197: 12 | D197: 10 | E197: 12x10 | F197: 745 | G197: 3
A198: MTSC33645 | B198: Sammelschiene Modul tief FB3 RE3 60mm CU 30x5mm 5p EBM 32mm | C198: 30 | D198: 5 | E198: 30x5 | F198: 745 | G198: 3
A199: MTSC33735 | B199: Sammelschiene Modul tief FB3 RE3 60mm CU 12x10mm 5p EBM 70mm | C199: 12 | D199: 10 | E199: 12x10 | F199: 745 | G199: 3
A200: MTSC33745 | B200: Sammelschiene Modul tief FB3 RE3 60mm CU 30x5mm 5p EBM 70mm | C200: 30 | D200: 5 | E200: 30x5 | F200: 745 | G200: 3
... 315 more rows

Sheet Tabelle 5 - Pv_Kabel
A1: Typ | B1: Geräteart | C1: Hersteller | D1: Bemerkung | E1: Maximal Strom, Imax / A (Kabeltemperatur 70°C) | F1: Verlustleistung des Gerätes pro Pol bei Maximalstrom in Watt
A2: 1,5 qmm | B2: Kabel H07V-K je 1m | C2: ABN | D2: Lufttemperatur 55°C | E2: 15 | F2: 3.2 | G2: 1,5 qmm
A3: 2,5qmm | B3: Kabel H07V-K je 1m | C3: ABN | D3: Lufttemperatur 55°C | E3: 21 | F3: 3.7 | G3: 2,5qmm
A4: 4 qmm | B4: Kabel H07V-K je 1m | C4: ABN | D4: Lufttemperatur 55°C | E4: 28 | F4: 4.2 | G4: 4 qmm
A5: 6 qmm | B5: Kabel H07V-K je 1m | C5: ABN | D5: Lufttemperatur 55°C | E5: 36 | F5: 4.7 | G5: 6 qmm
A6: 10 qmm | B6: Kabel H07V-K je 1m | C6: ABN | D6: Lufttemperatur 55°C | E6: 50 | F6: 5.4 | G6: 10 qmm
A7: 16 qmm | B7: Kabel H07V-K je 1m | C7: ABN | D7: Lufttemperatur 55°C | E7: 67 | F7: 6.2 | G7: 16 qmm
A8: 25 qmm | B8: Kabel H07V-K je 1m | C8: ABN | D8: Lufttemperatur 55°C | E8: 89 | F8: 6.9 | G8: 25 qmm
A9: 35 qmm | B9: Kabel H07V-K je 1m | C9: ABN | D9: Lufttemperatur 55°C | E9: 110 | F9: 7.7 | G9: 35 qmm
A10: 50 qmm | B10: Kabel H07V-K je 1m | C10: ABN | D10: Lufttemperatur 55°C | E10: 134 | F10: 8.3 | G10: 50 qmm
A11: 70 qmm | B11: Kabel H07V-K je 1m | C11: ABN | D11: Lufttemperatur 55°C | E11: 171 | F11: 9.4 | G11: 70 qmm
A12: 95 qmm | B12: Kabel H07V-K je 1m | C12: ABN | D12: Lufttemperatur 55°C | E12: 208 | F12: 10 | G12: 95 qmm
A13: 120 qmm | B13: Kabel H07V-K je 1m | C13: ABN | D13: Lufttemperatur 55°C | E13: 242 | F13: 10.7 | G13: 120 qmm
A14: 150 qmm | B14: Kabel H07V-K je 1m | C14: ABN | D14: Lufttemperatur 55°C | E14: 278 | F14: 11.5 | G14: 150 qmm
A15: 185 qmm | B15: Kabel H07V-K je 1m | C15: ABN | D15: Lufttemperatur 55°C | E15: 318 | F15: 12 | G15: 185 qmm
A16: 240 qmm | B16: Kabel H07V-K je 1m | C16: ABN | D16: Lufttemperatur 55°C | E16: 374 | F16: 12.7 | G16: 240 qmm
A17: 300qmm | B17: Kabel H07V-K je 1m | C17: ABN | D17: Lufttemperatur 55°C | E17: 432 | F17: 13.5 | G17: 300 qmm

Sheet Legende
A2: Legende:
B3: Die Derating-Kurve beschreibt die maximale zulässige Verlustleistung eines elektrischen oder elektronischen Bauteiles in Abhängigkeit von seiner Umgebungstemperatur.
B4: In der Praxis wird die Leistungsreduktion und damit die Berücksichtigung der Derating-Kurve oft nicht vom Bauteil oder Gerät selbst vorgenommen, sondern ist Aufgabe des Benutzers, sofern sie nicht bereits bei der Entwicklung des Gesamtproduktes berücksichtigt wurde.
B6: RDF = Bemessungsbelastungsfaktor Unter der Voraussetzung, dass die Belastung der Einspeisung deren Bemessungsstrom nicht überschreitet, ist der Belastungsfaktor der Anteil der jeweiligen Bemessungsströme, den jede Kombination von abgehenden Stromkreisen gleichzeitig und dauerhaft führen kann, ohne die Schaltgerätekombination zu überlasten.
B10: Festlegung: Betriebsbedingungen
B30: Sammelschienen Verluste für 3-poliges System

Sheet Tabelle 101 - (61439-2, -3)
A1: Tabelle Stromkreis - Belastungsfaktor | E1: Tabelle Stromkreis - Belastungsfaktor
C2: DIN EN 61439-2 ; PSC | G2: DIN EN 61439-3 ; DBO
B4: Anzahl Stromkreise | C4: angenommener Belastungsfaktor | F4: Anzahl Stromkreise | G4: angenommener Belastungsfaktor
B5: 1 | C5: 1 | F5: 1 | G5: 1
B6: 2 | C6: 0.9 | F6: 2 | G6: 0.8
B7: 3 | C7: 0.9 | F7: 3 | G7: 0.8
B8: 4 | C8: 0.8 | F8: 4 | G8: 0.7
B9: 5 | C9: 0.8 | F9: 5 | G9: 0.7
B10: 6 | C10: 0.7 | F10: 6 | G10: 0.6
B11: 7 | C11: 0.7 | F11: 7 | G11: 0.6
B12: 8 | C12: 0.7 | F12: 8 | G12: 0.6
B13: 9 | C13: 0.7 | F13: 9 | G13: 0.9
B14: 10 | C14: 0.6 | F14: 10 | G14: 0.5
B15: 11 | C15: 0.6 | F15: 11 | G15: 0.5
B16: 12 | C16: 0.6 | F16: 12 | G16: 0.5
B17: 13 | C17: 0.6 | F17: 13 | G17: 0.5
B18: 14 | C18: 0.6 | F18: 14 | G18: 0.5
B19: 15 | C19: 0.6 | F19: 15 | G19: 0.5
B20: 16 | C20: 0.6 | F20: 16 | G20: 0.5
B21: 17 | C21: 0.6 | F21: 17 | G21: 0.5
B22: 18 | C22: 0.6 | F22: 18 | G22: 0.5
B23: 19 | C23: 0.6 | F23: 19 | G23: 0.5
B24: 20 | C24: 0.6 | F24: 20 | G24: 0.5
B25: 21 | C25: 0.6 | F25: 21 | G25: 0.5
B26: 22 | C26: 0.6 | F26: 22 | G26: 0.5
B27: 23 | C27: 0.6 | F27: 23 | G27: 0.5
B28: 24 | C28: 0.6 | F28: 24 | G28: 0.5
B29: 25 | C29: 0.6 | F29: 25 | G29: 0.5
B30: 26 | C30: 0.6 | F30: 26 | G30: 0.5
B31: 27 | C31: 0.6 | F31: 27 | G31: 0.5
B32: 28 | C32: 0.6 | F32: 28 | G32: 0.5
B33: 29 | C33: 0.6 | F33: 29 | G33: 0.5
B34: 30 | C34: 0.6 | F34: 30 | G34: 0.5
A35: Erläuterung: | B35: Durch gegenseitige Erwärmung der Einbaugeräte muss eine Leistungsreduzierung in Form eines Belastungsfaktors bestimmt werden. | E35: Erläuterung: | F35: Durch gegenseitige Erwärmung der Einbaugeräte muss eine Leistungsreduzierung in Form eines Belastungsfaktors bestimmt werden.
